Workbook

Sheet 5P (2)
L1: =PI()/180 -> 0.01745329252
B2: y=e^x | C2: 0<x<1 | E2: 5 Precission point synthesis
C4: qin | D4: 30.61300283 | E4: =D4+180 -> 210.6130028 | F4: Dq | G4: 120 | I4: Rx | J4: =G4 -> 120
C5: fin | D5: 200.0063204 | E5: =D5 -> 200.0063204 | F5: Df | G5: 100 | I5: Ry | J5: =G5/(EXP(1)-1) -> 58.19767069
G6: radians
B7: x | C7: y | D7: q | E7: f | G7: q | H7: f
B8: =0.5*(1-COS(PI()/10)) -> 0.02447174185 | C8: =EXP(B8) -> 1.024773632 | D8: =$D$4+$J$4*B8 -> 33.54961185 | E8: =$D$5+$J$5*(C8-1) -> 201.4480881 | G8: =D8*D_R -> 0.5855511896 | H8: 3.515932409
B9: =0.5*(1-COS(3*PI()/10)) -> 0.2061073739 | C9: =EXP(B9) -> 1.228885147 | D9: =$D$4+$J$4*B9 -> 55.34588769 | E9: =$D$5+$J$5*(C9-1) -> 213.3269028 | G9: 0.9659679677 | H9: 3.723256836
B10: =0.5*(1-COS(5*PI()/10)) -> 0.5 | C10: 1.648721271 | D10: 90.61300283 | E10: 237.7603872 | G10: 1.581495244 | H10: 4.149701588
B11: =0.5*(1-COS(7*PI()/10)) -> 0.7938926261 | C11: 2.21199014 | D11: 125.880118 | E11: 270.5413234 | G11: 2.197022521 | H11: 4.721836856
B12: =0.5*(1-COS(9*PI()/10)) -> 0.9755282581 | C12: 2.652568082 | D12: 147.6763938 | E12: 296.1819334 | G12: =D12*D_R -> 2.577439299 | H12: =E12*D_R -> 5.169349922
D13: Coefficients of Freudenstein^s equation for all five positions
D14: =COS(H8) -> -0.9307492487 | E14: =-COS(G8) -> -0.8334075927 | F14: 1 | G14: =COS(H8-G8) -> -0.9777776616
D15: =COS(H9) -> -0.83554948 | E15: =-COS(G9) -> -0.5686208929 | F15: 1 | G15: =COS(H9-G9) -> -0.927059678
D16: -0.5334611839 | E16: 0.01069871358 | F16: 1 | G16: =COS(H10-G10) -> -0.8400687902
D17: 0.009447735126 | E17: 0.5860912314 | F17: 1 | G17: =COS(H11-G11) -> -0.8157461397
D18: 0.4412229052 | E18: 0.8450416052 | F18: 1 | G18: =COS(H12-G12) -> -0.8526906773 | I18: =MDETERM(D14:G17) -> 1.963027895e-07
F19: Link Lengths
D20: =MMULT(MINVERSE(D14:F16),(G14:G16)) -> -0.2555731258 | F20: a2 | G20: =1/D20 -> -3.912774462 | H20: =-G20 -> 3.912774462
D21: 0.2834299687 | F21: a3 | G21: =SQRT(1+G20^2+G22^2-2*D22*G20*G22) -> 1.309797986
D22: -0.9794394685 | F22: a4 | G22: =1/D21 -> 3.528208413 | H22: =-G22 -> -3.528208413
C24: Eq 4 | D24: =$D$20*D17+$D$21*E17+$D$22*F17-G17 -> 7.90336635e-06 | F24: =SQRT(D24^2+D25^2) -> 8.600738767e-06
C25: Eq 5 | D25: =$D$20*D18+$D$21*E18+$D$22*F18-G18 -> -3.392566531e-06
B26: Analysis | G26: yreq | H26: ygen
B27: =D4 -> 30.61300283 | C27: =B27*D_R+PI() -> 3.675890347 | D27: =fourbar($H$20,$G$21,$G$22,1,1,C27) -> 3.493962697 | E27: =D27/D_R -> 200.1893163 | F27: =(B27-$B$27)/$J$4 -> 0 | G27: =EXP(F27) -> 1 | H27: =1+(E27-$D$5)/$J$5 -> 1.003144386 | I27: =G27-H27 -> -0.003144385867 | K27: =fourbar($G$20,$G$21,$G$22,1,-1,C27)/D_R -> 61.64248604 | L27: =1+(K27-$D$5)/$J$5 -> -1.377480622 | M27: =G27-L27 -> 2.377480622
B28: =B27+1 -> 31.61300283 | C28: 3.693343639 | D28: =fourbar($H$20,$G$21,$G$22,1,1,C28) -> 3.501082818 | E28: 200.5972692 | F28: 0.008333333333 | G28: =EXP(F28) -> 1.008368152 | H28: =1+(E28-$D$5)/$J$5 -> 1.010154167 | I28: =G28-H28 -> -0.001786014758 | K28: =fourbar($G$20,$G$21,$G$22,1,-1,C28)/D_R -> 62.91637572 | L28: =1+(K28-$D$5)/$J$5 -> -1.355591607 | M28: =G28-L28 -> 2.36395976
B29: =B28+1 -> 32.61300283 | C29: 3.710796932 | D29: 3.508599896 | E29: 201.0279661 | F29: 0.01666666667 | G29: 1.01680633 | H29: 1.017554753 | I29: -0.0007484221751 | K29: =fourbar($G$20,$G$21,$G$22,1,-1,C29)/D_R -> 64.18332987 | L29: =1+(K29-$D$5)/$J$5 -> -1.333821764 | M29: 2.350628095
B30: 33.61300283 | C30: 3.728250224 | D30: 3.516437655 | E30: 201.4770365 | F30: 0.025 | G30: 1.025315121 | H30: 1.025271049 | I30: 4.407165993e-05 | K30: =fourbar($G$20,$G$21,$G$22,1,-1,C30)/D_R -> 65.44313665 | L30: =1+(K30-$D$5)/$J$5 -> -1.312174733 | M30: 2.337489854
B31: 34.61300283 | C31: 3.745703517 | D31: 3.524542301 | E31: 201.9413985 | F31: 0.03333333333 | G31: 1.033895114 | H31: 1.033250097 | I31: 0.0006450167707 | K31: =fourbar($G$20,$G$21,$G$22,1,-1,C31)/D_R -> 66.69559555 | L31: -1.29065396 | M31: 2.324549073
B32: 35.61300283 | C32: 3.763156809 | D32: 3.532874445 | E32: 202.4187953 | F32: 0.04166666667 | G32: 1.042546905 | H32: 1.041453118 | I32: 0.001093787171 | K32: =fourbar($G$20,$G$21,$G$22,1,-1,C32)/D_R -> 67.94051751 | L32: -1.269262692 | M32: 2.311809597
B33: 36.61300283 | C33: 3.780610102 | D33: 3.541404399 | E33: 202.9075256 | F33: 0.05 | G33: 1.051271096 | H33: 1.049850882 | I33: 0.001420213986 | K33: =fourbar($G$20,$G$21,$G$22,1,-1,C33)/D_R -> 69.17772492 | L33: -1.248003982 | M33: 2.299275078
B34: 37.61300283 | C34: 3.798063395 | D34: 3.550109262 | E34: 203.4062775 | F34: 0.05833333333 | G34: 1.060068293 | H34: 1.058420846 | I34: 0.001647446629 | K34: =fourbar($G$20,$G$21,$G$22,1,-1,C34)/D_R -> 70.40705163 | L34: -1.226880684 | M34: 2.286948977
B35: 38.61300283 | C35: 3.815516687 | D35: 3.558971049 | E35: 203.9140205 | F35: 0.06666666667 | G35: 1.068939106 | H35: 1.067145302 | I35: 0.001793804043 | K35: =fourbar($G$20,$G$21,$G$22,1,-1,C35)/D_R -> 71.62834292 | L35: -1.205895458 | M35: 2.274834564
B36: 39.61300283 | C36: 3.83296998 | D36: 3.56797542 | E36: 204.429933 | F36: 0.075 | G36: 1.077884151 | H36: 1.076010132 | I36: 0.001874019063 | K36: =fourbar($G$20,$G$21,$G$22,1,-1,C36)/D_R -> 72.84145538 | L36: -1.185050767 | M36: 2.262934918
B37: 40.61300283 | C37: 3.850423272 | D37: 3.577110807 | E37: 204.9533521 | F37: 0.08333333333 | G37: 1.08690405 | H37: 1.085003948 | I37: 0.001900101852 | K37: =fourbar($G$20,$G$21,$G$22,1,-1,C37)/D_R -> 74.04625681 | L37: -1.164348883 | M37: 2.251252933
B38: 41.61300283 | C38: 3.867876565 | D38: 3.586367788 | E38: 205.483738 | F38: 0.09166666667 | G38: 1.095999428 | H38: 1.094117473 | I38: 0.001881955381 | K38: =fourbar($G$20,$G$21,$G$22,1,-1,C38)/D_R -> 75.24262607 | L38: -1.143791887 | M38: 2.239791316
B39: 42.61300283 | C39: 3.885329857 | D39: 3.595738629 | E39: 206.0206477 | F39: 0.1 | G39: 1.105170918 | H39: 1.103343094 | I39: 0.001827824403 | K39: =fourbar($G$20,$G$21,$G$22,1,-1,C39)/D_R -> 76.43045286 | L39: -1.123381676 | M39: 2.228552594
B40: 43.61300283 | C40: 3.90278315 | D40: 3.605216948 | E40: 206.5637154 | F40: 0.1083333333 | G40: 1.114419157 | H40: 1.112674527 | I40: 0.001744629608 | K40: =fourbar($G$20,$G$21,$G$22,1,-1,C40)/D_R -> 77.60963757 | L40: -1.103119959 | M40: 2.217539116
B41: 44.61300283 | C41: 3.920236442 | D41: 3.614797456 | E41: 207.112638 | F41: 0.1166666667 | G41: 1.123744786 | H41: 1.122106565 | I41: 0.001638220712 | K41: =fourbar($G$20,$G$21,$G$22,1,-1,C41)/D_R -> 78.78009097 | L41: -1.083008271 | M41: 2.206753057
B42: 45.61300283 | C42: 3.937689735 | D42: 3.624475758 | E42: 207.6671639 | F42: 0.125 | G42: 1.133148453 | H42: 1.131634882 | I42: 0.00151357116 | K42: =fourbar($G$20,$G$21,$G$22,1,-1,C42)/D_R -> 79.94173402 | L42: -1.063047969 | M42: 2.196196422
B43: 46.61300283 | C43: 3.955143027 | D43: 3.634248202 | E43: 208.2270837 | F43: 0.1333333333 | G43: 1.142630812 | H43: 1.141255882 | I43: 0.001374929977 | K43: =fourbar($G$20,$G$21,$G$22,1,-1,C43)/D_R -> 81.09449757 | L43: -1.043240243 | M43: 2.185871055
B44: 47.61300283 | C44: 3.97259632 | D44: 3.644111754 | E44: 208.7922236 | F44: 0.1416666667 | G44: 1.15219252 | H44: 1.150966579 | I44: 0.001225941681 | K44: =fourbar($G$20,$G$21,$G$22,1,-1,C44)/D_R -> 82.23832207 | L44: -1.023586114 | M44: 2.175778635
B45: 48.61300283 | C45: 3.990049612 | D45: 3.654063905 | E45: 209.3624398 | F45: 0.15 | G45: 1.161834243 | H45: 1.160764501 | I45: 0.001069742031 | K45: =fourbar($G$20,$G$21,$G$22,1,-1,C45)/D_R -> 83.37315726 | L45: -1.004086447 | M45: 2.16592069
B46: 49.61300283 | C46: 4.007502905 | D46: 3.664102587 | E46: 209.937614 | F46: 0.1583333333 | G46: 1.171556649 | H46: 1.170647613 | I46: 0.0009090352536 | K46: =fourbar($G$20,$G$21,$G$22,1,-1,C46)/D_R -> 84.49896189 | L46: -0.9847419511 | M46: 2.1562986
B47: 50.61300283 | C47: 4.024956197 | D47: 3.674226115 | E47: 210.5176493 | F47: 0.1666666667 | G47: 1.181360413 | H47: 1.180614256 | I47: 0.0007461569068 | K47: =fourbar($G$20,$G$21,$G$22,1,-1,C47)/D_R -> 85.61570337 | L47: -0.9655531852 | M47: 2.146913598
B48: 51.61300283 | C48: 4.04240949 | D48: 3.684433128 | E48: 211.1024681 | F48: 0.175 | G48: 1.191246217 | H48: 1.190663091 | I48: 0.0005831254802 | K48: =fourbar($G$20,$G$21,$G$22,1,-1,C48)/D_R -> 86.72335745 | L48: -0.9465205664 | M48: 2.137766783
B49: 52.61300283 | C49: 4.059862782 | D49: 3.694722554 | E49: 211.6920088 | F49: 0.1833333333 | G49: 1.201214746 | H49: 1.200793061 | I49: 0.0004216850795 | K49: =fourbar($G$20,$G$21,$G$22,1,-1,C49)/D_R -> 87.82190791 | L49: -0.9276443735 | M49: 2.12885912
B50: 53.61300283 | C50: 4.077316075 | D50: 3.705093566 | E50: 212.286224 | F50: 0.1916666667 | G50: 1.211266694 | H50: 1.211003353 | I50: 0.0002633409853 | K50: =fourbar($G$20,$G$21,$G$22,1,-1,C50)/D_R -> 88.91134619 | L50: -0.9089247535 | M50: 2.120191448
B51: 54.61300283 | C51: 4.094769367 | D51: 3.715545556 | E51: 212.885079 | F51: 0.2 | G51: 1.221402758 | H51: 1.221293369 | I51: 0.0001093894716 | K51: =fourbar($G$20,$G$21,$G$22,1,-1,C51)/D_R -> 89.99167108 | L51: -0.8903617272 | M51: 2.111764485
B52: 55.61300283 | C52: 4.11222266 | D52: 3.72607811 | E52: 213.4885498 | F52: 0.2083333333 | G52: 1.231623642 | H52: 1.231662699 | I52: -3.90570368e-05 | K52: =fourbar($G$20,$G$21,$G$22,1,-1,C52)/D_R -> 91.0628884 | L52: -0.8719551946 | M52: 2.103578837
B53: 56.61300283 | C53: 4.129675952 | D53: 3.736690984 | E53: 214.0966227 | F53: 0.2166666667 | G53: 1.241930056 | H53: 1.242111105 | I53: -0.0001810486176 | K53: =fourbar($G$20,$G$21,$G$22,1,-1,C53)/D_R -> 92.12501062 | L53: -0.8537049415 | M53: 2.095634998
B54: 57.61300283 | C54: 4.147129245 | D54: 3.747384086 | E54: 214.7092923 | F54: 0.225 | G54: 1.252322716 | H54: 1.252638496 | I54: -0.0003157796409 | K54: =fourbar($G$20,$G$21,$G$22,1,-1,C54)/D_R -> 93.17805659 | L54: -0.835610644 | M54: 2.08793336
B55: 58.61300283 | C55: 4.164582537 | D55: 3.758157462 | E55: 215.3265613 | F55: 0.2333333333 | G55: 1.262802343 | H55: 1.263244916 | I55: -0.0004425731569 | K55: =fourbar($G$20,$G$21,$G$22,1,-1,C55)/D_R -> 94.22205114 | L55: -0.8176718753 | M55: 2.080474219
B56: 59.61300283 | C56: 4.18203583 | D56: 3.76901128 | E56: 215.9484393 | F56: 0.2416666667 | G56: 1.273369666 | H56: 1.273930533 | I56: -0.0005608674464 | K56: =fourbar($G$20,$G$21,$G$22,1,-1,C56)/D_R -> 95.25702485 | L56: -0.7998881102 | M56: 2.073257776
B57: 60.61300283 | C57: 4.199489122 | D57: 3.779945821 | E57: 216.5749424 | F57: 0.25 | G57: 1.284025417 | H57: 1.284695621 | I57: -0.0006702043811 | K57: =fourbar($G$20,$G$21,$G$22,1,-1,C57)/D_R -> 96.28301364 | L57: -0.7822587312 | M57: 2.066284148
B58: 61.61300283 | C58: 4.216942415 | D58: 3.790961466 | E58: 217.2060923 | F58: 0.2583333333 | G58: 1.294770337 | H58: 1.295540556 | I58: -0.000770219308 | K58: =fourbar($G$20,$G$21,$G$22,1,-1,C58)/D_R -> 97.30005854 | L58: -0.7647830335 | M58: 2.05955337
B59: 62.61300283 | C59: =B59*D_R+PI() -> 4.234395708 | D59: 3.802058689 | E59: =D59/D_R -> 217.8419163 | F59: =(B59-$B$27)/$J$4 -> 0.2666666667 | G59: 1.305605172 | H59: 1.306465804 | I59: -0.0008606322186 | K59: =fourbar($G$20,$G$21,$G$22,1,-1,C59)/D_R -> 98.30820534 | L59: -0.7474602302 | M59: 2.053065402
B60: 63.61300283 | C60: 4.251849 | D60: 3.813238046 | E60: 218.4824463 | F60: 0.275 | G60: 1.316530675 | H60: 1.317471915 | I60: -0.0009412400099 | K60: =fourbar($G$20,$G$21,$G$22,1,-1,C60)/D_R -> 99.30750431 | L60: -0.7302894576 | M60: 2.046820132
B61: 64.61300283 | C61: 4.269302293 | D61: 3.824500174 | E61: 219.1277187 | F61: 0.2833333333 | G61: 1.327547604 | H61: 1.328559514 | I61: -0.001011909674 | K61: =fourbar($G$20,$G$21,$G$22,1,-1,C61)/D_R -> 100.2980099 | L61: -0.7132697799 | M61: 2.040817384
B62: 65.61300283 | C62: 4.286755585 | D62: 3.835845781 | E62: 219.7777741 | F62: 0.2916666667 | G62: 1.338656724 | H62: 1.339729297 | I62: -0.001072572282 | K62: =fourbar($G$20,$G$21,$G$22,1,-1,C62)/D_R -> 101.2797805 | L62: -0.696400194 | M62: 2.035056918
B63: 66.61300283 | C63: 4.304208878 | D63: 3.847275638 | E63: 220.4326567 | F63: 0.3 | G63: 1.349858808 | H63: 1.350982025 | I63: -0.001123217642 | K63: =fourbar($G$20,$G$21,$G$22,1,-1,C63)/D_R -> 102.2528781 | L63: -0.6796796343 | M63: 2.029538442
B64: 67.61300283 | C64: 4.32166217 | D64: 3.858790581 | E64: 221.0924143 | F64: 0.3083333333 | G64: 1.361154632 | H64: 1.362318521 | I64: -0.001163889549 | K64: =fourbar($G$20,$G$21,$G$22,1,-1,C64)/D_R -> 103.2173682 | L64: -0.6631069772 | M64: 2.024261609
B65: 68.61300283 | C65: 4.339115463 | D65: 3.870391502 | E65: 221.7570981 | F65: 0.3166666667 | G65: 1.372544981 | H65: 1.373739662 | I65: -0.001194681531 | K65: =fourbar($G$20,$G$21,$G$22,1,-1,C65)/D_R -> 104.1733192 | L65: -0.6466810453 | M65: 2.019226026
B66: 69.61300283 | C66: 4.356568755 | D66: 3.882079346 | E66: 222.4267623 | F66: 0.325 | G66: 1.384030646 | H66: 1.385246379 | I66: -0.001215733024 | K66: =fourbar($G$20,$G$21,$G$22,1,-1,C66)/D_R -> 105.1208025 | L66: -0.6304006115 | M66: 2.014431257
B67: 70.61300283 | C67: 4.374022048 | D67: 3.893855107 | E67: 223.1014637 | F67: 0.3333333333 | G67: 1.395612425 | H67: 1.396839651 | I67: -0.001227225931 | K67: =fourbar($G$20,$G$21,$G$22,1,-1,C67)/D_R -> 106.0598922 | L67: -0.6142644036 | M67: 2.009876829
B68: 71.61300283 | C68: 4.39147534 | D68: 3.905719828 | E68: 223.7812621 | F68: 0.3416666667 | G68: 1.407291122 | H68: 1.408520504 | I68: -0.001229381491 | K68: =fourbar($G$20,$G$21,$G$22,1,-1,C68)/D_R -> 106.9906648 | L68: -0.5982711075 | M68: 2.00556223
B69: 72.61300283 | C69: 4.408928633 | D69: 3.917674594 | E69: 224.4662197 | F69: 0.35 | G69: 1.419067549 | H69: 1.420290006 | I69: -0.001222457432 | K69: =fourbar($G$20,$G$21,$G$22,1,-1,C69)/D_R -> 107.9131989 | L69: -0.5824193715 | M69: 2.00148692
B70: 73.61300283 | C70: 4.426381925 | D70: 3.929720531 | E70: 225.1564011 | F70: 0.3583333333 | G70: 1.430942522 | H70: 1.432149267 | I70: -0.001206745366 | K70: =fourbar($G$20,$G$21,$G$22,1,-1,C70)/D_R -> 108.8275752 | L70: -0.5667078094 | M70: 1.997650331
B71: 74.61300283 | C71: 4.443835218 | D71: 3.941858806 | E71: 225.851873 | F71: 0.3666666667 | G71: 1.442916867 | H71: 1.444099435 | I71: -0.001182568382 | K71: =fourbar($G$20,$G$21,$G$22,1,-1,C71)/D_R -> 109.7338762 | L71: -0.5511350045 | M71: 1.994051871
B72: 75.61300283 | C72: 4.46128851 | D72: 3.954090621 | E72: 226.5527044 | F72: 0.375 | G72: 1.454991415 | H72: 1.456141693 | I72: -0.001150278823 | K72: =fourbar($G$20,$G$21,$G$22,1,-1,C72)/D_R -> 110.6321859 | L72: -0.5356995124 | M72: 1.990690927
B73: 76.61300283 | C73: 4.478741803 | D73: 3.966417214 | E73: 227.2589662 | F73: 0.3833333333 | G73: 1.467167004 | H73: 1.46827726 | I73: -0.001110256212 | K73: =fourbar($G$20,$G$21,$G$22,1,-1,C73)/D_R -> 111.5225897 | L73: -0.5203998645 | M73: 1.987566869
B74: 77.61300283 | C74: 4.496195095 | D74: 3.978839854 | E74: 227.970731 | F74: 0.3916666667 | G74: 1.479444481 | H74: 1.480507386 | I74: -0.001062905301 | K74: =fourbar($G$20,$G$21,$G$22,1,-1,C74)/D_R -> 112.4051745 | L74: -0.5052345709 | M74: 1.984679052
B75: 78.61300283 | C75: 4.513648388 | D75: 3.991359842 | E75: 228.6880735 | F75: 0.4 | G75: 1.491824698 | H75: 1.492833352 | I75: -0.001008654239 | K75: =fourbar($G$20,$G$21,$G$22,1,-1,C75)/D_R -> 113.2800279 | L75: -0.4902021232 | M75: 1.982026821
B76: 79.61300283 | C76: 4.53110168 | D76: 4.003978509 | E76: 229.4110698 | F76: 0.4083333333 | G76: 1.504308514 | H76: 1.505256467 | I76: -0.0009479528169 | K76: =fourbar($G$20,$G$21,$G$22,1,-1,C76)/D_R -> 114.1472387 | L76: -0.4753009976 | M76: 1.979609511
B77: 80.61300283 | C77: 4.548554973 | D77: 4.016697212 | E77: 230.1397978 | F77: 0.4166666667 | G77: 1.516896796 | H77: 1.517778067 | I77: -0.0008812707952 | K77: =fourbar($G$20,$G$21,$G$22,1,-1,C77)/D_R -> 115.0068963 | L77: -0.4605296572 | M77: 1.977426454
B78: 81.61300283 | C78: 4.566008265 | D78: 4.029517334 | E78: 230.8743367 | F78: 0.425 | G78: 1.52959042 | H78: 1.530399516 | I78: -0.0008090962852 | K78: =fourbar($G$20,$G$21,$G$22,1,-1,C78)/D_R -> 115.8590908 | L78: -0.4458865545 | M78: 1.975476974
B79: 82.61300283 | C79: 4.583461558 | D79: 4.042440285 | E79: 231.6147673 | F79: 0.4333333333 | G79: 1.542390265 | H79: 1.543122199 | I79: -0.0007319341773 | K79: =fourbar($G$20,$G$21,$G$22,1,-1,C79)/D_R -> 116.7039126 | L79: -0.4313701343 | M79: 1.973760399
B80: 83.61300283 | C80: 4.60091485 | D80: 4.055467495 | E80: 232.3611714 | F80: 0.4416666667 | G80: 1.555297222 | H80: 1.555947526 | I80: -0.0006503046014 | K80: =fourbar($G$20,$G$21,$G$22,1,-1,C80)/D_R -> 117.5414527 | L80: -0.4169788354 | M80: 1.972276057
B81: 84.61300283 | C81: 4.618368143 | D81: 4.068600417 | E81: 233.1136324 | F81: 0.45 | G81: 1.568312185 | H81: 1.568876927 | I81: -0.000564741408 | K81: =fourbar($G$20,$G$21,$G$22,1,-1,C81)/D_R -> 118.3718021 | L81: -0.4027110932 | M81: 1.971023279
B82: 85.61300283 | C82: 4.635821435 | D82: 4.081840524 | E82: 233.8722346 | F82: 0.4583333333 | G82: 1.581436061 | H82: 1.581911851 | I82: -0.0004757906616 | K82: =fourbar($G$20,$G$21,$G$22,1,-1,C82)/D_R -> 119.1950519 | L82: -0.3885653416 | M82: 1.970001402
B83: 86.61300283 | C83: 4.653274728 | D83: 4.095189306 | E83: 234.6370636 | F83: 0.4666666667 | G83: 1.594669758 | H83: 1.595053767 | I83: -0.0003840091332 | K83: =fourbar($G$20,$G$21,$G$22,1,-1,C83)/D_R -> 120.0112932 | L83: -0.3745400152 | M83: 1.969209773
B84: 87.61300283 | C84: 4.670728021 | D84: 4.108648273 | E84: 235.4082056 | F84: 0.475 | G84: 1.608014197 | H84: 1.60830416 | I84: -0.0002899627862 | K84: =fourbar($G$20,$G$21,$G$22,1,-1,C84)/D_R -> 120.820617 | L84: -0.360633551 | M84: 1.968647748
B85: 88.61300283 | C85: 4.688181313 | D85: 4.122218948 | E85: 236.185748 | F85: 0.4833333333 | G85: 1.621470305 | H85: 1.62166453 | I85: -0.0001942252445 | K85: =fourbar($G$20,$G$21,$G$22,1,-1,C85)/D_R -> 121.6231141 | L85: -0.3468443905 | M85: 1.968314696
B86: 89.61300283 | C86: 4.705634606 | D86: 4.13590287 | E86: 236.9697789 | F86: 0.4916666667 | G86: 1.635039015 | H86: 1.635136392 | I86: -9.737623537e-05 | K86: =fourbar($G$20,$G$21,$G$22,1,-1,C86)/D_R -> 122.4188746 | L86: -0.3331709814 | M86: 1.968209997
B87: 90.61300283 | C87: 4.723087898 | D87: 4.149701588 | E87: 237.7603872 | F87: 0.5 | G87: 1.648721271 | H87: 1.648721271 | I87: 0 | K87: =fourbar($G$20,$G$21,$G$22,1,-1,C87)/D_R -> 123.2079886 | L87: -0.319611779 | M87: 1.96833305
B88: 91.61300283 | C88: 4.740541191 | D88: 4.163616665 | E88: 238.5576624 | F88: 0.5083333333 | G88: 1.662518021 | H88: 1.662420705 | I88: 9.731633724e-05 | K88: =fourbar($G$20,$G$21,$G$22,1,-1,C88)/D_R -> 123.9905454 | L88: -0.3061652485 | M88: 1.96868327
B89: 92.61300283 | C89: 4.757994483 | D89: 4.17764967 | E89: 239.3616944 | F89: 0.5166666667 | G89: 1.676430225 | H89: 1.676236241 | I89: 0.0001939844469 | K89: =fourbar($G$20,$G$21,$G$22,1,-1,C89)/D_R -> 124.7666336 | L89: -0.2928298659 | M89: 1.969260091
B90: =B89+1 -> 93.61300283 | C90: 4.775447776 | D90: 4.191802184 | E90: 240.1725737 | F90: 0.525 | G90: 1.690458848 | H90: 1.690169432 | I90: 0.0002894165273 | K90: =fourbar($G$20,$G$21,$G$22,1,-1,C90)/D_R -> 125.5363412 | L90: -0.27960412 | M90: 1.970062968
B91: =B90+1 -> 94.61300283 | C91: =B91*D_R+PI() -> 4.792901068 | D91: 4.206075788 | E91: =D91/D_R -> 240.990391 | F91: 0.5333333333 | G91: 1.704604865 | H91: 1.704221838 | I91: 0.0003830270993 | K91: =fourbar($G$20,$G$21,$G$22,1,-1,C91)/D_R -> 126.2997553 | L91: -0.266486514 | M91: 1.971091379
B92: 95.61300283 | C92: 4.810354361 | D92: =fourbar($H$20,$G$21,$G$22,1,1,C92) -> 4.220472073 | E92: 241.8152374 | F92: =(B92-$B$27)/$J$4 -> 0.5416666667 | G92: =EXP(F92) -> 1.718869258 | H92: =1+(E92-$D$5)/$J$5 -> 1.718395023 | I92: =G92-H92 -> 0.0004742348687 | K92: =fourbar($G$20,$G$21,$G$22,1,-1,C92)/D_R -> 127.0569621 | L92: -0.2534755664 | M92: =G92-L92 -> 1.972344825
B93: 96.61300283 | C93: 4.827807653 | D93: 4.234992629 | E93: 242.6472039 | F93: 0.55 | G93: 1.733253018 | H93: 1.732690553 | I93: 0.0005624646634 | K93: =fourbar($G$20,$G$21,$G$22,1,-1,C93)/D_R -> 127.8080469 | L93: -0.2405698131 | M93: 1.973822831
B94: 97.61300283 | C94: 4.845260946 | D94: 4.249639045 | E94: 243.4863817 | F94: 0.5583333333 | G94: 1.747757143 | H94: 1.747109993 | I94: 0.0006471494517 | K94: =fourbar($G$20,$G$21,$G$22,1,-1,C94)/D_R -> 128.5530938 | L94: =1+(K94-$D$5)/$J$5 -> -0.2277678085 | M94: 1.975524951
B95: 98.61300283 | C95: 4.862714238 | D95: 4.264412911 | E95: 244.3328619 | F95: 0.5666666667 | G95: 1.762382641 | H95: 1.761654908 | I95: 0.0007277324465 | K95: =fourbar($G$20,$G$21,$G$22,1,-1,C95)/D_R -> 129.2921856 | L95: -0.2150681272 | M95: 1.977450768
B96: 99.61300283 | C96: 4.880167531 | D96: 4.279315811 | E96: 245.1867352 | F96: 0.575 | G96: 1.777130527 | H96: 1.776326858 | I96: 0.0008036693041 | K96: =fourbar($G$20,$G$21,$G$22,1,-1,C96)/D_R -> 130.0254042 | L96: -0.2024693651 | M96: 1.979599892
B97: 100.6130028 | C97: 4.897620823 | D97: 4.294349323 | E97: 246.048092 | F97: 0.5833333333 | G97: 1.792001826 | H97: 1.791127395 | I97: 0.0008744304193 | K97: =fourbar($G$20,$G$21,$G$22,1,-1,C97)/D_R -> 130.75283 | L97: -0.1899701412 | M97: 1.981971967
B98: 101.6130028 | C98: 4.915074116 | D98: 4.309515018 | E98: 246.9170223 | F98: 0.5916666667 | G98: 1.80699757 | H98: 1.806058066 | I98: 0.0009395033271 | K98: =fourbar($G$20,$G$21,$G$22,1,-1,C98)/D_R -> 131.4745417 | L98: -0.1775690987 | M98: 1.984566668
B99: 102.6130028 | C99: 4.932527408 | D99: 4.324814452 | E99: 247.7936153 | F99: 0.6 | G99: 1.8221188 | H99: 1.821120405 | I99: 0.0009983952126 | K99: =fourbar($G$20,$G$21,$G$22,1,-1,C99)/D_R -> 132.190617 | L99: -0.165264907 | M99: 1.987383707
B100: 103.6130028 | C100: 4.949980701 | D100: 4.340249172 | E100: 248.6779596 | F100: 0.6083333333 | G100: 1.837366568 | H100: 1.836315932 | I100: 0.001050635537 | K100: =fourbar($G$20,$G$21,$G$22,1,-1,C100)/D_R -> 132.9011317 | L100: -0.1530562629 | M100: 1.990422831
B101: 104.6130028 | C101: 4.967433993 | D101: 4.355820704 | E101: 249.5701427 | F101: 0.6166666667 | G101: 1.852741931 | H101: 1.851646152 | I101: 0.001095778783 | K101: =fourbar($G$20,$G$21,$G$22,1,-1,C101)/D_R -> 133.6061598 | L101: -0.1409418924 | M101: 1.993683823
B102: 105.6130028 | C102: 4.984887286 | D102: 4.371530558 | E102: 250.470251 | F102: 0.625 | G102: 1.868245957 | H102: 1.86711255 | I102: 0.001133407326 | K102: =fourbar($G$20,$G$21,$G$22,1,-1,C102)/D_R -> 134.3057738 | L102: -0.1289205523 | M102: 1.99716651
B103: 106.6130028 | C103: 5.002340578 | D103: 4.38738022 | E103: 251.3783697 | F103: 0.6333333333 | G103: 1.883879724 | H103: 1.88271659 | I103: 0.001163134434 | K103: =fourbar($G$20,$G$21,$G$22,1,-1,C103)/D_R -> 135.0000441 | L103: -0.1169910322 | M103: 2.000870756
B104: 107.6130028 | C104: 5.019793871 | D104: 4.403371152 | E104: 252.2945826 | F104: 0.6416666667 | G104: 1.899644316 | H104: 1.898459709 | I104: 0.001184607404 | K104: =fourbar($G$20,$G$21,$G$22,1,-1,C104)/D_R -> 135.6890391 | L104: -0.1051521561 | M104: 2.004796472
B105: 108.6130028 | C105: 5.037247163 | D105: 4.419504784 | E105: 253.2189717 | F105: 0.65 | G105: 1.915540829 | H105: 1.914343318 | I105: 0.001197510832 | K105: =fourbar($G$20,$G$21,$G$22,1,-1,C105)/D_R -> 136.3728252 | L105: -0.09340278474 | M105: 2.008943614
B106: 109.6130028 | C106: 5.054700456 | D106: 4.435782519 | E106: 254.1516172 | F106: 0.6583333333 | G106: 1.931570366 | H106: 1.930368796 | I106: 0.001201570032 | K106: =fourbar($G$20,$G$21,$G$22,1,-1,C106)/D_R -> 137.0514663 | L106: -0.08174181771 | M106: 2.013312184
B107: 110.6130028 | C107: 5.072153748 | D107: 4.45220572 | E107: 255.0925973 | F107: 0.6666666667 | G107: 1.947734041 | H107: 1.946537486 | I107: 0.001196554588 | K107: =fourbar($G$20,$G$21,$G$22,1,-1,C107)/D_R -> 137.7250241 | L107: -0.07016819576 | M107: 2.017902237
B108: 111.6130028 | C108: 5.089607041 | D108: 4.468775713 | E108: 256.041988 | F108: 0.675 | G108: 1.964032976 | H108: 1.962850694 | I108: 0.001182282071 | K108: =fourbar($G$20,$G$21,$G$22,1,-1,C108)/D_R -> 138.3935578 | L108: -0.05868090351 | M108: 2.022713879
B109: 112.6130028 | C109: 5.107060334 | D109: 4.485493781 | E109: 256.9998627 | F109: 0.6833333333 | G109: 1.980468303 | H109: 1.979309681 | I109: 0.001158621888 | K109: =fourbar($G$20,$G$21,$G$22,1,-1,C109)/D_R -> 139.0571236 | L109: -0.04727897226 | M109: 2.027747275
B110: 113.6130028 | C110: 5.124513626 | D110: 4.502361158 | E110: 257.9662922 | F110: 0.6916666667 | G110: 1.997041163 | H110: 1.995915664 | I110: 0.001125499295 | K110: =fourbar($G$20,$G$21,$G$22,1,-1,C110)/D_R -> 139.7157751 | L110: -0.03596148312 | M110: 2.033002646
B111: 114.6130028 | C111: 5.141966919 | D111: 4.519379029 | E111: 258.9413444 | F111: 0.7 | G111: 2.013752707 | H111: 2.012669808 | I111: 0.001082899557 | K111: =fourbar($G$20,$G$21,$G$22,1,-1,C111)/D_R -> 140.3695627 | L111: -0.02472757048 | M111: 2.038480278
B112: 115.6130028 | C112: 5.159420211 | D112: 4.536548521 | E112: 259.9250838 | F112: 0.7083333333 | G112: 2.030604097 | H112: 2.029573224 | I112: 0.001030872262 | K112: =fourbar($G$20,$G$21,$G$22,1,-1,C112)/D_R -> 141.0185333 | L112: -0.01357642591 | M112: 2.044180523
B113: 116.6130028 | C113: 5.176873504 | D113: 4.553870704 | E113: 260.9175718 | F113: 0.7166666667 | G113: 2.047596501 | H113: 2.046626965 | I113: 0.0009695357904 | K113: =fourbar($G$20,$G$21,$G$22,1,-1,C113)/D_R -> 141.6627305 | L113: -0.00250730241 | M113: 2.050103803
B114: 117.6130028 | C114: 5.194326796 | D114: 4.571346581 | E114: 261.9188658 | F114: 0.725 | G114: 2.0647311 | H114: 2.063832018 | I114: 0.0008990819273 | K114: =fourbar($G$20,$G$21,$G$22,1,-1,C114)/D_R -> 142.3021939 | L114: 0.00848048072 | M114: 2.056250619
B115: 118.6130028 | C115: 5.211780089 | D115: 4.588977087 | E115: 262.9290194 | F115: 0.7333333333 | G115: 2.082009084 | H115: 2.081189303 | I115: 0.0008197806317 | K115: =fourbar($G$20,$G$21,$G$22,1,-1,C115)/D_R -> 142.9369589 | L115: 0.01938753248 | M115: 2.062621552
B116: 119.6130028 | C116: 5.229233381 | D116: 4.606763082 | E116: 263.9480818 | F116: 0.7416666667 | G116: 2.099431653 | H116: 2.098699668 | I116: 0.0007319849447 | K116: =fourbar($G$20,$G$21,$G$22,1,-1,C116)/D_R -> 143.5670564 | L116: 0.03021438402 | M116: 2.069217269
B117: 120.6130028 | C117: 5.246686674 | D117: 4.624705347 | E117: 264.9760978 | F117: 0.75 | G117: 2.117000017 | H117: 2.116363881 | I117: 0.0006361360397 | K117: =fourbar($G$20,$G$21,$G$22,1,-1,C117)/D_R -> 144.1925125 | L117: 0.04096148168 | M117: 2.076038535
B118: 121.6130028 | C118: 5.264139966 | D118: 4.642804577 | E118: 266.0131074 | F118: 0.7583333333 | G118: 2.134715395 | H118: 2.134182627 | I118: 0.0005327684053 | K118: =fourbar($G$20,$G$21,$G$22,1,-1,C118)/D_R -> 144.8133476 | L118: 0.0516291791 | M118: 2.083086216
B119: 122.6130028 | C119: 5.281593259 | D119: 4.66106138 | E119: 267.0591451 | F119: 0.7666666667 | G119: 2.152579018 | H119: 2.152156503 | I119: 0.0004225151551 | K119: =fourbar($G$20,$G$21,$G$22,1,-1,C119)/D_R -> 145.4295765 | L119: 0.06221772814 | M119: 2.09036129
B120: 123.6130028 | C120: 5.299046551 | D120: 4.679476266 | E120: 268.1142404 | F120: 0.775 | G120: 2.170592127 | H120: 2.170286014 | I120: 0.0003061134535 | K120: =fourbar($G$20,$G$21,$G$22,1,-1,C120)/D_R -> 146.0412073 | L120: 0.07272726851 | M120: 2.097864859
B121: 124.6130028 | C121: 5.316499844 | D121: 4.698049647 | E121: 269.1784167 | F121: 0.7833333333 | G121: 2.188755972 | H121: 2.188571562 | I121: 0.0001844100487 | K121: =fourbar($G$20,$G$21,$G$22,1,-1,C121)/D_R -> 146.6482408 | L121: 0.08315781576 | M121: 2.105598157
B122: 125.6130028 | C122: 5.333953136 | D122: 4.716781827 | E122: 270.2516916 | F122: 0.7916666667 | G122: 2.207071816 | H122: 2.207013449 | I122: 5.836689902e-05 | K122: =fourbar($G$20,$G$21,$G$22,1,-1,C122)/D_R -> 147.2506701 | L122: 0.09350924751 | M122: 2.113562568
B123: 126.6130028 | C123: =B123*D_R+PI() -> 5.351406429 | D123: 4.735672997 | E123: =D123/D_R -> 271.3340759 | F123: 0.8 | G123: 2.225540928 | H123: 2.225611862 | I123: -7.093312166e-05 | K123: =fourbar($G$20,$G$21,$G$22,1,-1,C123)/D_R -> 147.8484788 | L123: 0.1037812872 | M123: 2.121759641
B124: 127.6130028 | C124: 5.368859721 | D124: 4.754723231 | E124: 272.4255739 | F124: 0.8083333333 | G124: 2.244164594 | H124: 2.244366874 | I124: -0.000202280455 | K124: =fourbar($G$20,$G$21,$G$22,1,-1,C124)/D_R -> 148.441641 | L124: 0.1139734855 | M124: 2.130191108
B125: 128.6130028 | C125: 5.386313014 | D125: 4.773932481 | E125: 273.5261829 | F125: 0.8166666667 | G125: 2.262944105 | H125: 2.263278438 | I125: -0.0003343330448 | K125: =fourbar($G$20,$G$21,$G$22,1,-1,C125)/D_R -> 149.0301192 | L125: 0.124085198 | M125: 2.138858907
B126: 129.6130028 | C126: 5.403766306 | D126: 4.793300567 | E126: 274.6358924 | F126: 0.825 | G126: 2.281880765 | H126: 2.282346376 | I126: -0.0004656105003 | K126: =fourbar($G$20,$G$21,$G$22,1,-1,C126)/D_R -> 149.6138628 | L126: 0.1341155591 | M126: 2.147765206
B127: 130.6130028 | C127: 5.421219599 | D127: 4.812827175 | E127: 275.7546847 | F127: 0.8333333333 | G127: 2.300975891 | H127: 2.301570379 | I127: -0.0005944882574 | K127: =fourbar($G$20,$G$21,$G$22,1,-1,C127)/D_R -> 150.192807 | L127: 0.1440634513 | M127: 2.15691244
B128: 131.6130028 | C128: 5.438672891 | D128: 4.832511849 | E128: 276.8825334 | F128: =(B128-$B$27)/$J$4 -> 0.8416666667 | G128: =EXP(F128) -> 2.320230807 | H128: =1+(E128-$D$5)/$J$5 -> 2.320949999 | I128: =G128-H128 -> -0.0007191917659 | K128: =fourbar($G$20,$G$21,$G$22,1,-1,C128)/D_R -> 150.7668698 | L128: =1+(K128-$D$5)/$J$5 -> 0.1539274681 | M128: =G128-L128 -> 2.166303339
B129: 132.6130028 | C129: 5.456126184 | D129: 4.852353987 | E129: 278.0194042 | F129: 0.85 | G129: 2.339646852 | H129: 2.340484643 | I129: -0.0008377907276 | K129: =fourbar($G$20,$G$21,$G$22,1,-1,C129)/D_R -> 151.3359499 | L129: 0.1637058692 | M129: 2.175940983
B130: 133.6130028 | C130: 5.473579476 | D130: 4.872352833 | E130: 279.1652536 | F130: 0.8583333333 | G130: 2.359225373 | H130: 2.360173566 | I130: -0.000948193418 | K130: =fourbar($G$20,$G$21,$G$22,1,-1,C130)/D_R -> 151.8999237 | L130: 0.1733965273 | M130: 2.185828846
B131: 134.6130028 | C131: 5.491032769 | D131: 4.892507475 | E131: 280.3200296 | F131: 0.8666666667 | G131: 2.37896773 | H131: 2.380015871 | I131: -0.001048141123 | K131: =fourbar($G$20,$G$21,$G$22,1,-1,C131)/D_R -> 152.4586408 | L131: 0.1829968616 | M131: 2.195970868
B132: 135.6130028 | C132: 5.508486061 | D132: 4.912816836 | E132: 281.4836702 | F132: 0.875 | G132: 2.398875294 | H132: 2.400010497 | I132: -0.001135202727 | K132: =fourbar($G$20,$G$21,$G$22,1,-1,C132)/D_R -> 153.01192 | L132: 0.1925037575 | M132: 2.206371536
B133: 136.6130028 | C133: 5.525939354 | D133: 4.933279669 | E133: 282.6561042 | F133: 0.8833333333 | G133: 2.418949448 | H133: 2.420156217 | I133: -0.001206769489 | K133: =fourbar($G$20,$G$21,$G$22,1,-1,C133)/D_R -> 153.559543 | L133: 0.2019134655 | M133: 2.217035982
B134: 137.6130028 | C134: 5.543392647 | D134: 4.953894556 | E134: 283.8372502 | F134: 0.8916666667 | G134: 2.439191585 | H134: 2.440451635 | I134: -0.00126005005 | K134: =fourbar($G$20,$G$21,$G$22,1,-1,C134)/D_R -> 154.1012475 | L134: 0.211221475 | M134: 2.22797011
B135: 138.6130028 | C135: 5.560845939 | D135: 4.9746599 | E135: 285.0270168 | F135: 0.9 | G135: 2.459603111 | H135: 2.460895177 | I135: -0.00129206571 | K135: =fourbar($G$20,$G$21,$G$22,1,-1,C135)/D_R -> 154.6367173 | L135: 0.2204223543 | M135: 2.239180757
B136: 139.6130028 | C136: 5.578299232 | D136: 4.995573919 | E136: 286.2253018 | F136: 0.9083333333 | G136: 2.480185444 | H136: 2.48148509 | I136: -0.001299646027 | K136: =fourbar($G$20,$G$21,$G$22,1,-1,C136)/D_R -> 155.1655705 | L136: 0.2295095437 | M136: 2.250675901
B137: 140.6130028 | C137: 5.595752524 | D137: 5.016634645 | E137: 287.4319925 | F137: =(B137-$B$27)/$J$4 -> 0.9166666667 | G137: =EXP(F137) -> 2.500940014 | H137: =1+(E137-$D$5)/$J$5 -> 2.502219438 | I137: =G137-H137 -> -0.001279424773 | K137: =fourbar($G$20,$G$21,$G$22,1,-1,C137)/D_R -> 155.6873442 | L137: =1+(K137-$D$5)/$J$5 -> 0.2384750869 | M137: =G137-L137 -> 2.262464927
B138: 141.6130028 | C138: 5.613205817 | D138: 5.037839922 | E138: 288.6469654 | F138: 0.925 | G138: 2.52186826 | H138: 2.523096097 | I138: -0.001227836316 | K138: =fourbar($G$20,$G$21,$G$22,1,-1,C138)/D_R -> 156.2014734 | L138: 0.2473092739 | M138: 2.274558986
B139: 142.6130028 | C139: 5.630659109 | D139: 5.059187399 | E139: 289.8700857 | F139: 0.9333333333 | G139: 2.542971638 | H139: 2.54411275 | I139: -0.001141112454 | K139: =fourbar($G$20,$G$21,$G$22,1,-1,C139)/D_R -> 156.7072627 | L139: 0.2560001606 | M139: 2.286971477
B140: 143.6130028 | C140: 5.648112402 | D140: 5.080674526 | E140: 291.1012074 | F140: 0.9416666667 | G140: 2.564251612 | H140: 2.565266891 | I140: -0.001015279775 | K140: =fourbar($G$20,$G$21,$G$22,1,-1,C140)/D_R -> 157.2038486 | L140: 0.264532905 | M140: 2.299718707
B141: 144.6130028 | C141: 5.665565694 | D141: 5.10229856 | E141: 292.3401733 | F141: 0.95 | G141: 2.585709659 | H141: 2.586555817 | I141: -0.0008461575847 | K141: =fourbar($G$20,$G$21,$G$22,1,-1,C141)/D_R -> 157.6901441 | L141: 0.2728888323 | M141: 2.312820827
B142: 145.6130028 | C142: 5.683018987 | D142: 5.124056555 | E142: 293.5868146 | F142: 0.9583333333 | G142: 2.607347271 | H142: 2.607976628 | I142: -0.0006293564558 | K142: =fourbar($G$20,$G$21,$G$22,1,-1,C142)/D_R -> 158.1647603 | L142: 0.2810440776 | M142: 2.326303194
B143: 146.6130028 | C143: 5.700472279 | D143: 5.145945367 | E143: 294.8409511 | F143: 0.9666666667 | G143: 2.62916595 | H143: 2.629526228 | I143: -0.0003602774572 | K143: =fourbar($G$20,$G$21,$G$22,1,-1,C143)/D_R -> 158.625888 | L143: 0.2889675505 | M143: 2.3401984
B144: 147.6130028 | C144: 5.717925572 | D144: 5.167961649 | E144: 296.1023912 | F144: 0.975 | G144: 2.651167211 | H144: 2.651201323 | I144: -3.411211077e-05 | K144: =fourbar($G$20,$G$21,$G$22,1,-1,C144)/D_R -> 159.0711123 | L144: 0.2966177593 | M144: 2.354549452
B145: 148.6130028 | C145: 5.735378864 | D145: 5.190101859 | E145: 297.3709317 | F145: 0.9833333333 | G145: 2.673352582 | H145: 2.672998425 | I145: 0.0003541568698 | K145: =fourbar($G$20,$G$21,$G$22,1,-1,C145)/D_R -> 159.4971103 | L145: 0.3039376046 | M145: 2.369414977
B146: 149.6130028 | C146: 5.752832157 | D146: 5.212362253 | E146: 298.6463584 | F146: 0.9916666667 | G146: 2.695723603 | H146: 2.694913849 | I146: 0.0008097540099 | K146: =fourbar($G$20,$G$21,$G$22,1,-1,C146)/D_R -> 159.8991224 | L146: 0.3108453053 | M146: 2.384878298
B147: 150.6130028 | C147: 5.770285449 | D147: 5.234738895 | E147: 299.9284456 | F147: 1 | G147: 2.718281828 | H147: 2.71694372 | I147: 0.001338108628 | K147: =fourbar($G$20,$G$21,$G$22,1,-1,C147)/D_R -> 160.2699549 | L147: 0.3172172538 | M147: 2.401064575

Sheet 5P
L1: =PI()/180 -> 0.01745329252
B2: y=e^x | C2: 0<x<1 | E2: 5 Precission point synthesis
C4: qin | D4: 52.42056851 | F4: Dq | G4: 100 | I4: Rx | J4: =G4 -> 100 | L4: fin | M4: 55.1670669
C5: fin | D5: 215.8493976 | F5: Df | G5: 100 | I5: Ry | J5: =G5/(EXP(1)-1) -> 58.19767069
G6: radians
B7: x | C7: y | D7: q | E7: f | G7: q | H7: f
B8: =0.5*(1-COS(PI()/10)) -> 0.02447174185 | C8: =EXP(B8) -> 1.024773632 | D8: =$D$4+$J$4*B8 -> 54.86774269 | E8: =$D$5+$J$5*(C8-1) -> 217.2911653 | G8: =D8*D_R -> 0.9576227631 | H8: 3.792446271
B9: =0.5*(1-COS(3*PI()/10)) -> 0.2061073739 | C9: =EXP(B9) -> 1.228885147 | D9: =$D$4+$J$4*B9 -> 73.03130589 | E9: =$D$5+$J$5*(C9-1) -> 229.16998 | G9: 1.274636745 | H9: 3.999770698
B10: =0.5*(1-COS(5*PI()/10)) -> 0.5 | C10: 1.648721271 | D10: 102.4205685 | E10: 253.6034645 | G10: 1.787576142 | H10: 4.42621545
A11: =D5+180 -> 395.8493976 | B11: =0.5*(1-COS(7*PI()/10)) -> 0.7938926261 | C11: 2.21199014 | D11: 131.8098311 | E11: 286.3844007 | G11: 2.30051554 | H11: 4.998350718
B12: =0.5*(1-COS(9*PI()/10)) -> 0.9755282581 | C12: =EXP(B12) -> 2.652568082 | D12: =$D$4+$J$4*B12 -> 149.9733943 | E12: =$D$5+$J$5*(C12-1) -> 312.0250106 | G12: =D12*D_R -> 2.617529521 | H12: =E12*D_R -> 5.445863784
D13: Coefficients of Freudenstein^s equation for all five positions
D14: =COS(H8) -> -0.7955669112 | E14: =-COS(G8) -> -0.5754657761 | F14: 1 | G14: =COS(H8-G8) -> -0.9533141976
D15: =COS(H9) -> -0.6538171397 | E15: =-COS(G9) -> -0.2918491449 | F15: 1 | G15: =COS(H9-G9) -> -0.9145272139
D16: -0.2822834494 | E16: 0.2150859271 | F16: 1 | G16: =COS(H10-G10) -> -0.8761628273
D17: 0.2820802639 | E17: 0.6666603733 | F17: 1 | G17: =COS(H11-G11) -> -0.9031448231
D18: 0.6694549386 | E18: 0.8657931321 | F18: 1 | G18: =COS(H12-G12) -> -0.9513345159 | I18: =MDETERM(D14:G17) -> -3.742043149e-09
F19: Link Lengths
D20: =MMULT(MINVERSE(D14:F16),(G14:G16)) -> -0.2620215154 | F20: a2 | G20: =1/D20 -> -3.816480484 | H20: =-G20 -> 3.816480484
D21: 0.2677151664 | F21: a3 | G21: =SQRT(1+G20^2+G22^2-2*D22*G20*G22) -> 0.8870146485
D22: -1.007708929 | F22: a4 | G22: =1/D21 -> 3.735313219 | H22: =-G22 -> -3.735313219
C24: Eq4 | D24: =$D$20*D17+$D$21*E17+$D$22*F17-G17 -> -1.116521099e-07 | F24: =SQRT(D24^2+D25^2) -> 1.260752227e-07
C25: Eq5 | D25: =$D$20*D18+$D$21*E18+$D$22*F18-G18 -> -5.855568397e-08 | I25: e
B26: Analysis | G26: yreq | H26: ygen
B27: =D4 -> 52.42056851 | C27: =B27*D_R+PI() -> 4.05650417 | D27: =fourbar($H$20,$G$21,$G$22,1,1,C27) -> 3.768256434 | E27: =D27/D_R -> 215.9051898 | F27: =(B27-$B$27)/$J$4 -> 0 | G27: =EXP(F27) -> 1 | H27: =1+(E27-$D$5)/$J$5 -> 1.000958667 | I27: =G27-H27 -> -0.0009586670166 | K27: =fourbar($G$20,$G$21,$G$22,1,-1,C27)/D_R -> 78.96347024 | L27: =1+(K27-$D$5)/$J$5 -> -1.352086016 | M27: =G27-L27 -> 2.352086016
B28: =B27+1 -> 53.42056851 | C28: 4.073957462 | D28: =fourbar($H$20,$G$21,$G$22,1,1,C28) -> 3.777997891 | E28: 216.4633342 | F28: 0.01 | G28: =EXP(F28) -> 1.010050167 | H28: =1+(E28-$D$5)/$J$5 -> 1.01054916 | I28: =G28-H28 -> -0.0004989930643 | K28: =fourbar($G$20,$G$21,$G$22,1,-1,C28)/D_R -> 80.19446332 | L28: =1+(K28-$D$5)/$J$5 -> -1.330934086 | M28: =G28-L28 -> 2.340984253
B29: =B28+1 -> 54.42056851 | C29: 4.091410755 | D29: 3.787939753 | E29: 217.0329609 | F29: 0.02 | G29: 1.02020134 | H29: 1.020336953 | I29: -0.0001356129557 | K29: =fourbar($G$20,$G$21,$G$22,1,-1,C29)/D_R -> 81.41295783 | L29: =1+(K29-$D$5)/$J$5 -> -1.309996916 | M29: 2.330198256
B30: 55.42056851 | C30: 4.108864047 | D30: 3.798067018 | E30: 217.6132104 | F30: 0.03 | G30: 1.030454534 | H30: 1.030307275 | I30: 0.0001472591536 | K30: =fourbar($G$20,$G$21,$G$22,1,-1,C30)/D_R -> 82.61904981 | L30: =1+(K30-$D$5)/$J$5 -> -1.289272857 | M30: 2.319727391
B31: 56.42056851 | C31: 4.12631734 | D31: 3.808367532 | E31: 218.2033864 | F31: 0.04 | G31: 1.040810774 | H31: 1.040448162 | I31: 0.0003626125374 | K31: =fourbar($G$20,$G$21,$G$22,1,-1,C31)/D_R -> 83.81283901 | L31: -1.268760194 | M31: 2.309570968
B32: 57.42056851 | C32: 4.143770632 | D32: 3.81883137 | E32: 218.8029202 | F32: 0.05 | G32: 1.051271096 | H32: 1.050749841 | I32: 0.000521255189 | K32: =fourbar($G$20,$G$21,$G$22,1,-1,C32)/D_R -> 84.99442871 | L32: -1.248457153 | M32: 2.299728249
B33: 58.42056851 | C33: 4.161223925 | D33: 3.829450373 | E33: 219.4113442 | F33: 0.06 | G33: 1.061836547 | H33: 1.061204281 | I33: 0.0006322657898 | K33: =fourbar($G$20,$G$21,$G$22,1,-1,C33)/D_R -> 86.16392542 | L33: -1.228361903 | M33: 2.29019845
B34: 59.42056851 | C34: 4.178677217 | D34: 3.840217804 | E34: 220.0282726 | F34: 0.07 | G34: 1.072508181 | H34: 1.071804849 | I34: 0.0007033322692 | K34: =fourbar($G$20,$G$21,$G$22,1,-1,C34)/D_R -> 87.3214387 | L34: -1.208472563 | M34: 2.280980744
B35: 60.42056851 | C35: 4.19613051 | D35: 3.85112809 | E35: 220.6533859 | F35: 0.08 | G35: 1.083287068 | H35: 1.082546058 | I35: 0.0007410098059 | K35: =fourbar($G$20,$G$21,$G$22,1,-1,C35)/D_R -> 88.46708091 | L35: -1.188787201 | M35: 2.272074269
B36: 61.42056851 | C36: 4.213583802 | D36: 3.862176615 | E36: 221.2864198 | F36: 0.09 | G36: 1.094174284 | H36: 1.093423363 | I36: 0.0007509204494 | K36: =fourbar($G$20,$G$21,$G$22,1,-1,C36)/D_R -> 89.60096695 | L36: -1.169303843 | M36: 2.263478127
B37: 62.42056851 | C37: 4.231037095 | D37: 3.873359562 | E37: 221.9271555 | F37: 0.1 | G37: 1.105170918 | H37: 1.104433008 | I37: 0.0007379096787 | K37: =fourbar($G$20,$G$21,$G$22,1,-1,C37)/D_R -> 90.72321407 | L37: -1.150020475 | M37: 2.255191393
B38: 63.42056851 | C38: 4.248490388 | D38: 3.884673791 | E38: 222.575413 | F38: 0.11 | G38: 1.11627807 | H38: 1.1155719 | I38: 0.0007061706887 | K38: =fourbar($G$20,$G$21,$G$22,1,-1,C38)/D_R -> 91.83394158 | L38: -1.130935046 | M38: 2.247213116
B39: 64.42056851 | C39: 4.26594368 | D39: 3.89611673 | E39: 223.2310451 | F39: 0.12 | G39: 1.127496852 | H39: 1.126837507 | I39: 0.0006593441447 | K39: =fourbar($G$20,$G$21,$G$22,1,-1,C39)/D_R -> 92.93327067 | L39: -1.112045474 | M39: 2.239542325
B40: 65.42056851 | C40: 4.283396973 | D40: 3.907686301 | E40: 223.8939327 | F40: 0.13 | G40: 1.138828383 | H40: 1.138227784 | I40: 0.0006005990475 | K40: =fourbar($G$20,$G$21,$G$22,1,-1,C40)/D_R -> 94.02132417 | L40: -1.093349648 | M40: 2.232178032
B41: 66.42056851 | C41: 4.300850265 | D41: 3.919380847 | E41: 224.5639809 | F41: 0.14 | G41: 1.150273799 | H41: 1.1497411 | I41: 0.0005326988843 | K41: =fourbar($G$20,$G$21,$G$22,1,-1,C41)/D_R -> 95.09822632 | L41: -1.074845434 | M41: 2.225119233
B42: 67.42056851 | C42: 4.318303558 | D42: 3.931199081 | E42: 225.2411158 | F42: 0.15 | G42: 1.161834243 | H42: 1.161376187 | I42: 0.000458056194 | K42: =fourbar($G$20,$G$21,$G$22,1,-1,C42)/D_R -> 96.16410255 | L42: -1.056530677 | M42: 2.218364919
B43: 68.42056851 | C43: 4.33575685 | D43: 3.943140037 | E43: 225.9252822 | F43: 0.16 | G43: 1.173510871 | H43: 1.173132093 | I43: 0.0003787779229 | K43: =fourbar($G$20,$G$21,$G$22,1,-1,C43)/D_R -> 97.21907932 | L43: -1.038403202 | M43: 2.211914073
B44: 69.42056851 | C44: 4.353210143 | D44: 3.955203033 | E44: 226.6164409 | F44: 0.17 | G44: 1.185304851 | H44: 1.185008148 | I44: 0.0002967033933 | K44: =fourbar($G$20,$G$21,$G$22,1,-1,C44)/D_R -> 98.26328384 | L44: -1.020460826 | M44: 2.205765677
B45: 70.42056851 | C45: 4.370663435 | D45: 3.967387637 | E45: 227.3145673 | F45: 0.18 | G45: 1.197217363 | H45: 1.197003927 | I45: 0.0002134362984 | K45: =fourbar($G$20,$G$21,$G$22,1,-1,C45)/D_R -> 99.29684394 | L45: -1.002701351 | M45: 2.199918714
B46: 71.42056851 | C46: 4.388116728 | D46: 3.979693642 | E46: 228.0196495 | F46: 0.19 | G46: 1.209249598 | H46: 1.209119226 | I46: 0.0001303718308 | K46: =fourbar($G$20,$G$21,$G$22,1,-1,C46)/D_R -> 100.3198878 | L46: -0.9851225733 | M46: 2.194372171
B47: 72.42056851 | C47: 4.40557002 | D47: 3.992121043 | E47: 228.7316871 | F47: 0.2 | G47: 1.221402758 | H47: 1.221354038 | I47: 4.871981885e-05 | K47: =fourbar($G$20,$G$21,$G$22,1,-1,C47)/D_R -> 101.332544 | L47: -0.9677222871 | M47: 2.189125045
B48: 73.42056851 | C48: 4.423023313 | D48: 4.004670012 | E48: 229.45069 | F48: 0.21 | G48: 1.23367806 | H48: 1.233708535 | I48: -3.047543328e-05 | K48: =fourbar($G$20,$G$21,$G$22,1,-1,C48)/D_R -> 102.3349408 | L48: -0.9504982843 | M48: 2.184176344
B49: 74.42056851 | C49: 4.440476605 | D49: 4.017340886 | E49: 230.1766776 | F49: 0.22 | G49: 1.246076731 | H49: 1.246183049 | I49: -0.0001063180418 | K49: =fourbar($G$20,$G$21,$G$22,1,-1,C49)/D_R -> 103.3272067 | L49: -0.9334483596 | M49: 2.17952509
B50: 75.42056851 | C50: 4.457929898 | D50: 4.03013415 | E50: 230.9096777 | F50: 0.23 | G50: 1.25860001 | H50: 1.258778056 | I50: -0.0001780457246 | K50: =fourbar($G$20,$G$21,$G$22,1,-1,C50)/D_R -> 104.3094697 | L50: -0.9165703129 | M50: 2.175170323
B51: 76.42056851 | C51: 4.47538319 | D51: 4.043050426 | E51: 231.6497258 | F51: 0.24 | G51: 1.27124915 | H51: 1.271494167 | I51: -0.000245016899 | K51: =fourbar($G$20,$G$21,$G$22,1,-1,C51)/D_R -> 105.2818574 | L51: -0.8998619521 | M51: 2.171111102
B52: 77.42056851 | C52: 4.492836483 | D52: 4.056090457 | E52: 232.3968645 | F52: 0.25 | G52: 1.284025417 | H52: 1.284332116 | I52: -0.0003066993941 | K52: =fourbar($G$20,$G$21,$G$22,1,-1,C52)/D_R -> 106.2444967 | L52: -0.8833210956 | M52: 2.167346512
B53: 78.42056851 | C53: 4.510289775 | D53: 4.069255101 | E53: 233.151143 | F53: 0.26 | G53: 1.296930087 | H53: 1.297292747 | I53: -0.0003626605296 | K53: =fourbar($G$20,$G$21,$G$22,1,-1,C53)/D_R -> 107.1975138 | L53: -0.8669455753 | M53: 2.163875662
B54: 79.42056851 | C54: 4.527743068 | D54: 4.082545321 | E54: 233.9126166 | F54: 0.27 | G54: 1.309964451 | H54: 1.310377009 | I54: -0.0004125583536 | K54: =fourbar($G$20,$G$21,$G$22,1,-1,C54)/D_R -> 108.1410341 | L54: -0.8507332389 | M54: 2.16069769
B55: 80.42056851 | C55: 4.54519636 | D55: 4.09596218 | E55: 234.681346 | F55: 0.28 | G55: 1.323129812 | H55: 1.323585946 | I55: -0.0004561338679 | K55: =fourbar($G$20,$G$21,$G$22,1,-1,C55)/D_R -> 109.0751815 | L55: -0.8346819524 | M55: 2.157811765
B56: 81.42056851 | C56: 4.562649653 | D56: 4.109506828 | E56: 235.4573971 | F56: 0.29 | G56: 1.336427488 | H56: 1.336920692 | I56: -0.0004932040964 | K56: =fourbar($G$20,$G$21,$G$22,1,-1,C56)/D_R -> 110.0000793 | L56: -0.8187896025 | M56: 2.155217091
B57: 82.42056851 | C57: 4.580102945 | D57: 4.1231805 | E57: 236.2408408 | F57: 0.3 | G57: 1.349858808 | H57: 1.350382463 | I57: -0.0005236558733 | K57: =fourbar($G$20,$G$21,$G$22,1,-1,C57)/D_R -> 110.9158489 | L57: -0.8030540991 | M57: 2.152912907
B58: 83.42056851 | C58: 4.597556238 | D58: 4.136984513 | E58: 237.0317525 | F58: 0.31 | G58: 1.363425114 | H58: 1.363972554 | I58: -0.0005474402499 | K58: =fourbar($G$20,$G$21,$G$22,1,-1,C58)/D_R -> 111.8226106 | L58: -0.7874733778 | M58: 2.150898492
B59: 84.42056851 | C59: =B59*D_R+PI() -> 4.61500953 | D59: 4.150920253 | E59: =D59/D_R -> 237.8302116 | F59: =(B59-$B$27)/$J$4 -> 0.32 | G59: 1.377127764 | H59: 1.377692332 | I59: -0.00056456743 | K59: =fourbar($G$20,$G$21,$G$22,1,-1,C59)/D_R -> 112.7204829 | L59: -0.7720454019 | M59: 2.149173166
B60: 85.42056851 | C60: 4.632462823 | D60: 4.164989178 | E60: 238.6363016 | F60: 0.33 | G60: 1.390968128 | H60: 1.391543231 | I60: -0.0005751021588 | K60: =fourbar($G$20,$G$21,$G$22,1,-1,C60)/D_R -> 113.6095825 | L60: -0.7567681646 | M60: 2.147736293
B61: 86.42056851 | C61: 4.649916115 | D61: 4.179192812 | E61: 239.4501099 | F61: 0.34 | G61: 1.404947591 | H61: 1.40552675 | I61: -0.0005791595014 | K61: =fourbar($G$20,$G$21,$G$22,1,-1,C61)/D_R -> 114.4900244 | L61: -0.7416396921 | M61: 2.146587283
B62: 87.42056851 | C62: 4.667369408 | D62: 4.193532737 | E62: 240.2717271 | F62: 0.35 | G62: 1.419067549 | H62: 1.41964445 | I62: -0.000576900953 | K62: =fourbar($G$20,$G$21,$G$22,1,-1,C62)/D_R -> 115.3619213 | L62: -0.726658045 | M62: 2.145725594
B63: 88.42056851 | C63: 4.684822701 | D63: 4.208010597 | E63: 241.1012474 | F63: 0.36 | G63: 1.433329415 | H63: 1.433897945 | I63: -0.0005685308331 | K63: =fourbar($G$20,$G$21,$G$22,1,-1,C63)/D_R -> 116.2253841 | L63: -0.7118213212 | M63: 2.145150736
B64: 89.42056851 | C64: 4.702275993 | D64: 4.222628087 | E64: 241.9387678 | F64: 0.37 | G64: 1.447734615 | H64: 1.448288908 | I64: -0.0005542929204 | K64: =fourbar($G$20,$G$21,$G$22,1,-1,C64)/D_R -> 117.0805211 | L64: -0.6971276583 | M64: 2.144862273
B65: 90.42056851 | C65: 4.719729286 | D65: 4.237386955 | E65: 242.7843887 | F65: 0.38 | G65: 1.462284589 | H65: 1.462819057 | I65: -0.0005344672913 | K65: =fourbar($G$20,$G$21,$G$22,1,-1,C65)/D_R -> 117.9274381 | L65: -0.682575236 | M65: 2.144859825
B66: 91.42056851 | C66: 4.737182578 | D66: 4.252288997 | E66: 243.6382128 | F66: 0.39 | G66: 1.476980794 | H66: 1.477490161 | I66: -0.0005093673273 | K66: =fourbar($G$20,$G$21,$G$22,1,-1,C66)/D_R -> 118.7662387 | L66: -0.6681622783 | M66: 2.145143072
B67: 92.42056851 | C67: 4.754635871 | D67: 4.267336055 | E67: 244.5003457 | F67: 0.4 | G67: 1.491824698 | H67: 1.492304035 | I67: -0.0004793368646 | K67: =fourbar($G$20,$G$21,$G$22,1,-1,C67)/D_R -> 119.5970233 | L67: -0.6538870571 | M67: 2.145711755
B68: 93.42056851 | C68: 4.772089163 | D68: 4.282530014 | E68: 245.3708954 | F68: 0.41 | G68: 1.506817785 | H68: 1.507262533 | I68: -0.000444747457 | K68: =fourbar($G$20,$G$21,$G$22,1,-1,C68)/D_R -> 120.4198897 | L68: -0.639747894 | M68: 2.146565679
B69: 94.42056851 | C69: 4.789542456 | D69: 4.297872801 | E69: 246.2499724 | F69: 0.42 | G69: 1.521961556 | H69: 1.522367551 | I69: -0.0004059957297 | K69: =fourbar($G$20,$G$21,$G$22,1,-1,C69)/D_R -> 121.2349323 | L69: -0.625743164 | M69: 2.14770472
B70: 95.42056851 | C70: 4.806995748 | D70: 4.313366378 | E70: 247.137689 | F70: 0.43 | G70: 1.537257524 | H70: 1.537621024 | I70: -0.0003635008031 | K70: =fourbar($G$20,$G$21,$G$22,1,-1,C70)/D_R -> 122.0422426 | L70: -0.6118712984 | M70: 2.149128822
B71: 96.42056851 | C71: 4.824449041 | D71: 4.329012746 | E71: 248.0341598 | F71: 0.44 | G71: 1.552707219 | H71: 1.55302492 | I71: -0.0003177017669 | K71: =fourbar($G$20,$G$21,$G$22,1,-1,C71)/D_R -> 122.8419083 | L71: -0.5981307883 | M71: 2.150838007
B72: 97.42056851 | C72: 4.841902333 | D72: 4.344813938 | E72: 248.9395014 | F72: 0.45 | G72: 1.568312185 | H72: 1.568581241 | I72: -0.0002690551867 | K72: =fourbar($G$20,$G$21,$G$22,1,-1,C72)/D_R -> 123.6340135 | L72: -0.5845201881 | M72: 2.152832374
B73: 98.42056851 | C73: 4.859355626 | D73: 4.360772018 | E73: 249.8538321 | F73: 0.46 | G73: 1.584073985 | H73: 1.584292018 | I73: -0.000218032628 | K73: =fourbar($G$20,$G$21,$G$22,1,-1,C73)/D_R -> 124.4186385 | L73: -0.5710381199 | M73: 2.155112105
B74: 99.42056851 | C74: 4.876808918 | D74: 4.376889078 | E74: 250.7772716 | F74: 0.47 | G74: 1.599994193 | H74: 1.600159311 | I74: -0.0001651181832 | K74: =fourbar($G$20,$G$21,$G$22,1,-1,C74)/D_R -> 125.1958592 | L74: -0.5576832777 | M74: 2.157677471
B75: 100.4205685 | C75: 4.894262211 | D75: 4.393167238 | E75: 251.7099415 | F75: 0.48 | G75: 1.616074402 | H75: 1.616185208 | I75: -0.0001108059862 | K75: =fourbar($G$20,$G$21,$G$22,1,-1,C75)/D_R -> 125.9657472 | L75: -0.5444544322 | M75: 2.160528834
B76: 101.4205685 | C76: 4.911715503 | D76: 4.409608641 | E76: 252.6519644 | F76: 0.49 | G76: 1.63231622 | H76: 1.632371818 | I76: -5.559770522e-05 | K76: =fourbar($G$20,$G$21,$G$22,1,-1,C76)/D_R -> 126.7283692 | L76: -0.5313504362 | M76: 2.163666656
B77: 102.4205685 | C77: 4.929168796 | D77: 4.42621545 | E77: 253.6034645 | F77: 0.5 | G77: 1.648721271 | H77: 1.648721271 | I77: 2.886579864e-15 | K77: =fourbar($G$20,$G$21,$G$22,1,-1,C77)/D_R -> 127.483787 | L77: -0.5183702307 | M77: 2.167091501
B78: 103.4205685 | C78: 4.946622088 | D78: 4.44298985 | E78: 254.5645668 | F78: 0.51 | G78: 1.665291195 | H78: 1.665235717 | I78: 5.547806611e-05 | K78: =fourbar($G$20,$G$21,$G$22,1,-1,C78)/D_R -> 128.2320565 | L78: -0.5055128514 | M78: 2.170804046
B79: 104.4205685 | C79: 4.964075381 | D79: 4.45993404 | E79: 255.5353974 | F79: 0.52 | G79: 1.68202765 | H79: 1.681917322 | I79: 0.0001103276687 | K79: =fourbar($G$20,$G$21,$G$22,1,-1,C79)/D_R -> 128.973228 | L79: -0.4927774363 | M79: 2.174805086
B80: 105.4205685 | C80: 4.981528673 | D80: 4.477050233 | E80: 256.516083 | F80: 0.53 | G80: 1.698932309 | H80: 1.698768266 | I80: 0.0001640429288 | K80: =fourbar($G$20,$G$21,$G$22,1,-1,C80)/D_R -> 129.7073452 | L80: -0.4801632343 | M80: 2.179095543
B81: 106.4205685 | C81: 4.998981966 | D81: 4.494340656 | E81: 257.5067513 | F81: 0.54 | G81: 1.716006862 | H81: 1.715790738 | I81: 0.0002161236913 | K81: =fourbar($G$20,$G$21,$G$22,1,-1,C81)/D_R -> 130.4344447 | L81: -0.4676696146 | M81: 2.183676477
B82: 107.4205685 | C82: 5.016435258 | D82: 4.511807542 | E82: 258.5075301 | F82: 0.55 | G82: 1.733253018 | H82: 1.732986939 | I82: 0.000266078383 | K82: =fourbar($G$20,$G$21,$G$22,1,-1,C82)/D_R -> 131.1545558 | L82: -0.4552960775 | M82: 2.188549095
B83: 108.4205685 | C83: 5.033888551 | D83: 4.52945313 | E83: 259.5185479 | F83: 0.56 | G83: 1.7506725 | H83: 1.750359073 | I83: 0.0003134269556 | K83: =fourbar($G$20,$G$21,$G$22,1,-1,C83)/D_R -> 131.867699 | L83: -0.4430422673 | M83: 2.193714768
B84: 109.4205685 | C84: 5.051341843 | D84: 4.547279663 | E84: 260.539933 | F84: 0.57 | G84: 1.768267051 | H84: 1.767909348 | I84: 0.0003577039219 | K84: =fourbar($G$20,$G$21,$G$22,1,-1,C84)/D_R -> 132.5738859 | L84: -0.4309079864 | M84: 2.199175038
B85: 110.4205685 | C85: 5.068795136 | D85: 4.565289382 | E85: 261.5718138 | F85: 0.58 | G85: 1.786038431 | H85: 1.785639969 | I85: 0.0003984614873 | K85: =fourbar($G$20,$G$21,$G$22,1,-1,C85)/D_R -> 133.2731177 | L85: -0.4188932119 | M85: 2.204931643
B86: 111.4205685 | C86: 5.086248428 | D86: 4.583484526 | E86: 262.6143188 | F86: 0.59 | G86: 1.803988415 | H86: 1.803553143 | I86: 0.0004352727831 | K86: =fourbar($G$20,$G$21,$G$22,1,-1,C86)/D_R -> 133.9653847 | L86: -0.406998115 | M86: 2.21098653
B87: 112.4205685 | C87: 5.103701721 | D87: 4.601867327 | E87: 263.6675757 | F87: 0.6 | G87: 1.8221188 | H87: 1.821651065 | I87: 0.0004677352029 | K87: =fourbar($G$20,$G$21,$G$22,1,-1,C87)/D_R -> 134.6506641 | L87: -0.3952230832 | M87: 2.217341884
B88: 113.4205685 | C88: 5.121155014 | D88: 4.620440009 | E88: 264.731712 | F88: 0.61 | G88: 1.840431399 | H88: 1.839935925 | I88: 0.0004954738452 | K88: =fourbar($G$20,$G$21,$G$22,1,-1,C88)/D_R -> 135.3289193 | L88: -0.3835687469 | M88: 2.224000146
B89: 114.4205685 | C89: 5.138608306 | D89: 4.639204779 | E89: 265.8068541 | F89: 0.62 | G89: 1.858928042 | H89: 1.858409897 | I89: 0.0005181450632 | K89: =fourbar($G$20,$G$21,$G$22,1,-1,C89)/D_R -> 136.0000977 | L89: -0.3720360103 | M89: 2.230964052
B90: =B89+1 -> 115.4205685 | C90: 5.156061599 | D90: 4.65816383 | E90: 266.8931277 | F90: 0.63 | G90: 1.877610579 | H90: 1.877075139 | I90: 0.0005354401198 | K90: =fourbar($G$20,$G$21,$G$22,1,-1,C90)/D_R -> 136.6641286 | L90: -0.3606260881 | M90: 2.238236667
B91: =B90+1 -> 116.4205685 | C91: =B91*D_R+PI() -> 5.173514891 | D91: 4.677319335 | E91: =D91/D_R -> 267.9906573 | F91: 0.64 | G91: 1.896480879 | H91: 1.89593379 | I91: 0.0005470889474 | K91: =fourbar($G$20,$G$21,$G$22,1,-1,C91)/D_R -> 137.3209207 | L91: -0.3493405498 | M91: 2.245821429
B92: 117.4205685 | C92: 5.190968184 | D92: =fourbar($H$20,$G$21,$G$22,1,1,C92) -> 4.696673441 | E92: 269.0995659 | F92: =(B92-$B$27)/$J$4 -> 0.65 | G92: =EXP(F92) -> 1.915540829 | H92: =1+(E92-$D$5)/$J$5 -> 1.914987965 | I92: =G92-H92 -> 0.0005528640084 | K92: =fourbar($G$20,$G$21,$G$22,1,-1,C92)/D_R -> 137.9703588 | L92: -0.3381813722 | M92: =G92-L92 -> 2.253722201
B93: 118.4205685 | C93: 5.208421476 | D93: 4.716228268 | E93: 270.2199749 | F93: 0.66 | G93: 1.934792334 | H93: 1.93423975 | I93: 0.0005525842506 | K93: =fourbar($G$20,$G$21,$G$22,1,-1,C93)/D_R -> 138.6123006 | L93: -0.3271510036 | M93: 2.261943338
B94: 119.4205685 | C94: 5.225874769 | D94: 4.735985904 | E94: 271.3520041 | F94: 0.67 | G94: 1.954237321 | H94: 1.953691201 | I94: 0.0005461191491 | K94: =fourbar($G$20,$G$21,$G$22,1,-1,C94)/D_R -> 139.2465715 | L94: =1+(K94-$D$5)/$J$5 -> -0.3162524418 | M94: 2.270489762
B95: 120.4205685 | C95: 5.243328061 | D95: 4.755948401 | E95: 272.495771 | F95: 0.68 | G95: 1.973877732 | H95: 1.973344339 | I95: 0.0005333928263 | K95: =fourbar($G$20,$G$21,$G$22,1,-1,C95)/D_R -> 139.8729595 | L95: -0.3054893306 | M95: 2.279367063
B96: 121.4205685 | C96: 5.260781354 | D96: 4.776117772 | E96: 273.6513908 | F96: 0.69 | G96: 1.993715533 | H96: 1.993201145 | I96: 0.0005143882352 | K96: =fourbar($G$20,$G$21,$G$22,1,-1,C96)/D_R -> 140.4912079 | L96: -0.2948660796 | M96: 2.288581613
B97: 122.4205685 | C97: 5.278234646 | D97: 4.796495985 | E97: 274.8189764 | F97: 0.7 | G97: 2.013752707 | H97: 2.013263556 | I97: 0.0004891513905 | K97: =fourbar($G$20,$G$21,$G$22,1,-1,C97)/D_R -> 141.1010069 | L97: -0.2843880147 | M97: 2.298140722
B98: 123.4205685 | C98: 5.295687939 | D98: 4.81708496 | E98: 275.9986378 | F98: 0.71 | G98: 2.033991259 | H98: 2.033533463 | I98: 0.000457795627 | K98: =fourbar($G$20,$G$21,$G$22,1,-1,C98)/D_R -> 141.7019819 | L98: -0.2740615703 | M98: 2.308052829
B99: 124.4205685 | C99: 5.313141231 | D99: 4.837886565 | E99: 277.1904819 | F99: 0.72 | G99: 2.054433211 | H99: 2.054012705 | I99: 0.000420505862 | K99: =fourbar($G$20,$G$21,$G$22,1,-1,C99)/D_R -> 142.2936796 | L99: -0.2638945361 | M99: 2.318327747
B100: 125.4205685 | C100: 5.330594524 | D100: 4.858902611 | E100: 278.3946127 | F100: 0.73 | G100: 2.075080608 | H100: 2.074703065 | I100: 0.0003775428311 | K100: =fourbar($G$20,$G$21,$G$22,1,-1,C100)/D_R -> 142.8755489 | L100: -0.2538963814 | M100: 2.328976989
B101: 126.4205685 | C101: 5.348047816 | D101: 4.88013485 | E101: 279.6111304 | F101: 0.74 | G101: 2.095935514 | H101: 2.095606267 | I101: 0.000329247263 | K101: =fourbar($G$20,$G$21,$G$22,1,-1,C101)/D_R -> 143.446916 | L101: -0.2440786857 | M101: 2.3400142
B102: 127.4205685 | C102: 5.365501109 | D102: 4.901584969 | E102: 280.8401316 | F102: 0.75 | G102: 2.117000017 | H102: 2.116723973 | I102: 0.0002760439514 | K102: =fourbar($G$20,$G$21,$G$22,1,-1,C102)/D_R -> 144.0069499 | L102: -0.2344557241 | M102: 2.351455741
B103: 128.4205685 | C103: 5.382954401 | D103: 4.923254586 | E103: 282.0817092 | F103: 0.76 | G103: 2.13827622 | H103: 2.138057775 | I103: 0.0002184456742 | K103: =fourbar($G$20,$G$21,$G$22,1,-1,C103)/D_R -> 144.5546159 | L103: -0.2250452784 | M103: 2.363321499
B104: 129.4205685 | C104: 5.400407694 | D104: 4.945145248 | E104: 283.3359518 | F104: 0.77 | G104: 2.159766254 | H104: 2.159609197 | I104: 0.0001570569008 | K104: =fourbar($G$20,$G$21,$G$22,1,-1,C104)/D_R -> 145.0886079 | L104: -0.2158697916 | M104: 2.375636045
B105: 130.4205685 | C105: 5.417860986 | D105: 4.967258428 | E105: 284.6029437 | F105: 0.78 | G105: 2.181472265 | H105: 2.181379688 | I105: 9.257721747e-05 | K105: =fourbar($G$20,$G$21,$G$22,1,-1,C105)/D_R -> 145.6072499 | L105: -0.2069580609 | M105: 2.388430326
B106: 131.4205685 | C106: 5.435314279 | D106: 4.98959552 | E106: 285.8827648 | F106: 0.79 | G106: 2.203396426 | H106: 2.203370622 | I106: 2.580438811e-05 | K106: =fourbar($G$20,$G$21,$G$22,1,-1,C106)/D_R -> 146.1083464 | L106: -0.1983478102 | M106: 2.401744237
B107: 132.4205685 | C107: 5.452767571 | D107: 5.012157839 | E107: 287.1754904 | F107: 0.8 | G107: 2.225540928 | H107: 2.225583292 | I107: -4.236304918e-05 | K107: =fourbar($G$20,$G$21,$G$22,1,-1,C107)/D_R -> 146.5889449 | L107: -0.1900897728 | M107: 2.415630701
B108: 133.4205685 | C108: 5.470220864 | D108: 5.034946616 | E108: 288.4811912 | F108: 0.81 | G108: 2.247907987 | H108: 2.24801891 | I108: -0.0001109237666 | K108: =fourbar($G$20,$G$21,$G$22,1,-1,C108)/D_R -> 147.0449379 | L108: -0.1822545281 | M108: 2.430162515
B109: 134.4205685 | C109: 5.487674156 | D109: 5.057963001 | E109: 289.7999329 | F109: 0.82 | G109: 2.270499838 | H109: 2.27067861 | I109: -0.0001787723529 | K109: =fourbar($G$20,$G$21,$G$22,1,-1,C109)/D_R -> 147.470349 | L109: -0.1749447673 | M109: 2.445444605
B110: 135.4205685 | C110: 5.505127449 | D110: 5.08120806 | E110: 291.1317767 | F110: 0.83 | G110: 2.29331874 | H110: 2.293563439 | I110: -0.0002446989095 | K110: =fourbar($G$20,$G$21,$G$22,1,-1,C110)/D_R -> 147.8559301 | L110: -0.1683193978 | M110: 2.461638138
B111: 136.4205685 | C111: 5.522580741 | D111: 5.104682776 | E111: 292.4767788 | F111: 0.84 | G111: 2.316366977 | H111: 2.316674367 | I111: -0.0003073897391 | K111: =fourbar($G$20,$G$21,$G$22,1,-1,C111)/D_R -> 148.1860286 | L111: -0.1626473745 | M111: 2.479014351
B112: 137.4205685 | C112: 5.540034034 | D112: 5.128388052 | E112: 293.8349911 | F112: 0.85 | G112: 2.339646852 | H112: 2.340012281 | I112: -0.0003654293705 | K112: =fourbar($G$20,$G$21,$G$22,1,-1,C112)/D_R -> 148.4300822 | L112: -0.1584538457 | M112: 2.498100698
B113: 138.4205685 | C113: 5.557487327 | D113: 5.152324716 | E113: 295.2064609 | F113: 0.86 | G113: 2.363160694 | H113: 2.363577998 | I113: -0.0004173042187 | K113: =fourbar($G$20,$G$21,$G$22,1,-1,C113)/D_R -> 148.5097838 | L113: -0.1570843485 | M113: 2.520245042
B114: 139.4205685 | C114: 5.574940619 | D114: 5.176493525 | E114: 296.5912316 | F114: 0.87 | G114: 2.386910854 | H114: 2.387372262 | I114: -0.0004614082428 | K114: =fourbar($G$20,$G$21,$G$22,1,-1,C114)/D_R -> 147.8486842 | L114: -0.1684439014 | M114: 2.555354755
B115: 140.4205685 | C115: 5.592393912 | D115: 5.200895173 | E115: 297.9893431 | F115: 0.88 | G115: 2.410899706 | H115: 2.411395757 | I115: -0.0004960510501 | K115: =fourbar($G$20,$G$21,$G$22,1,-1,C115)/D_R -> 
B116: 141.4205685 | C116: 5.609847204 | D116: 5.225530308 | E116: 299.4008324 | F116: 0.89 | G116: 2.435129651 | H116: 2.43564912 | I116: -0.0005194690039 | K116: =fourbar($G$20,$G$21,$G$22,1,-1,C116)/D_R -> 
B117: 142.4205685 | C117: 5.627300497 | D117: 5.250399538 | E117: 300.8257343 | F117: 0.9 | G117: 2.459603111 | H117: 2.460132951 | I117: -0.0005298400304 | K117: =fourbar($G$20,$G$21,$G$22,1,-1,C117)/D_R -> 
B118: 143.4205685 | C118: 5.644753789 | D118: 5.275503459 | E118: 302.264083 | F118: 0.91 | G118: 2.484322533 | H118: 2.484847836 | I118: -0.0005253030032 | K118: =fourbar($G$20,$G$21,$G$22,1,-1,C118)/D_R -> 
B119: 144.4205685 | C119: 5.662207082 | D119: 5.300842678 | E119: 303.7159133 | F119: 0.92 | G119: 2.50929039 | H119: 2.509794373 | I119: -0.0005039828269 | K119: =fourbar($G$20,$G$21,$G$22,1,-1,C119)/D_R -> 
B120: 145.4205685 | C120: 5.679660374 | D120: 5.326417845 | E120: 305.1812624 | F120: 0.93 | G120: 2.534509178 | H120: 2.5349732 | I120: -0.0004640226608 | K120: =fourbar($G$20,$G$21,$G$22,1,-1,C120)/D_R -> 
B121: 146.4205685 | C121: 5.697113667 | D121: 5.352229695 | E121: 306.6601725 | F121: 0.94 | G121: 2.559981418 | H121: 2.560385043 | I121: -0.0004036251599 | K121: =fourbar($G$20,$G$21,$G$22,1,-1,C121)/D_R -> 
B122: 147.4205685 | C122: 5.714566959 | D122: 5.378279105 | E122: 308.1526938 | F122: 0.95 | G122: 2.585709659 | H122: 2.586030765 | I122: -0.0003211052054 | K122: =fourbar($G$20,$G$21,$G$22,1,-1,C122)/D_R -> 
B123: 148.4205685 | C123: =B123*D_R+PI() -> 5.732020252 | D123: 5.404567158 | E123: =D123/D_R -> 309.6588883 | F123: 0.96 | G123: 2.611696473 | H123: 2.611911431 | I123: -0.0002149574225 | K123: =fourbar($G$20,$G$21,$G$22,1,-1,C123)/D_R -> 
B124: 149.4205685 | C124: 5.749473544 | D124: 5.431095236 | E124: 311.1788352 | F124: 0.97 | G124: 2.637944459 | H124: 2.638028402 | I124: -8.394294273e-05 | K124: =fourbar($G$20,$G$21,$G$22,1,-1,C124)/D_R -> 
B125: 150.4205685 | C125: 5.766926837 | D125: 5.457865131 | E125: 312.7126372 | F125: 0.98 | G125: 2.664456242 | H125: 2.664383443 | I125: 7.279846875e-05 | K125: =fourbar($G$20,$G$21,$G$22,1,-1,C125)/D_R -> 
B126: 151.4205685 | C126: 5.784380129 | D126: 5.484879195 | E126: 314.260429 | F126: 0.99 | G126: 2.691234472 | H126: 2.69097887 | I126: 0.0002556023846 | K126: =fourbar($G$20,$G$21,$G$22,1,-1,C126)/D_R -> 
B127: 152.4205685 | C127: 5.801833422 | D127: 5.512140536 | E127: 315.8223888 | F127: 1 | G127: 2.718281828 | H127: 2.717817741 | I127: 0.0004640876618 | K127: =fourbar($G$20,$G$21,$G$22,1,-1,C127)/D_R -> 

Sheet 4P
L1: =PI()/180 -> 0.01745329252
B2: y=e^x | C2: 0<x<1 | E2: 4 Precission point synthesis
C4: qin | D4: 60 | F4: Dq | G4: 100 | I4: Rx | J4: =G4 -> 100
C5: fin | D5: 214.0810502 | F5: Df | G5: 100 | I5: Ry | J5: =G5/(EXP(1)-1) -> 58.19767069
G6: radians
B7: x | C7: y | D7: q | E7: f | G7: q | H7: f
B8: =0.5*(1-COS(PI()/8)) -> 0.03806023374 | C8: =EXP(B8) -> 1.038793801 | D8: =$D$4+$J$4*B8 -> 63.80602337 | E8: =$D$5+$J$5*(C8-1) -> 216.338759 | G8: =D8*D_R -> 1.11362519 | H8: 3.775823645
B9: =0.5*(1-COS(3*PI()/8)) -> 0.3086582838 | C9: =EXP(B9) -> 1.361597011 | D9: =$D$4+$J$4*B9 -> 90.86582838 | E9: =$D$5+$J$5*(C9-1) -> 235.1251539 | G9: 1.585907883 | H9: 4.103708091
B10: =0.5*(1-COS(5*PI()/8)) -> 0.6913417162 | C10: 1.996392329 | D10: 129.1341716 | E10: 272.0687628 | G10: 2.253816472 | H10: 4.748495703
A11: =D5+180 -> 394.0810502 | B11: =0.5*(1-COS(7*PI()/8)) -> 0.9619397663 | C11: 2.616767471 | D11: 156.1939766 | E11: 308.173151 | G11: 2.726099164 | H11: 5.378636151
D13: Coefficients of Freudenstein^s equation for all ffour positions
D14: =COS(H8) -> -0.805527617 | E14: =-COS(G8) -> -0.4414115236 | F14: 1 | G14: =COS(H8-G8) -> -0.8872745063
D15: =COS(H9) -> -0.5717857559 | E15: =-COS(G9) -> 0.01511098088 | F15: 1 | G15: =COS(H9-G9) -> -0.8116690648
D16: 0.03609887747 | E16: 0.6311385349 | F16: 1 | G16: =COS(H10-G10) -> -0.7979479582
D17: 0.6180400723 | E17: 0.914917239 | F17: 1 | G17: =COS(H11-G11) -> -0.8827768931
I18: =MDETERM(D14:G17) -> -5.929611981e-10
D20: =MMULT(MINVERSE(D14:F16),(G14:G16)) -> -0.301906544 | F20: a2 | G20: =1/D20 -> -3.312283287 | H20: =-G20 -> 3.312283287
D21: 0.320189339 | F21: a3 | G21: =SQRT(1+G20^2+G22^2-2*D22*G20*G22) -> 1.122763328
D22: -0.9891333012 | F22: a4 | G22: =1/D21 -> 3.123152079 | H22: =-G22 -> -3.123152079
G24: yreq | H24: ygen
B25: =D4 -> 60 | C25: =B25*D_R+PI() -> 4.188790205 | D25: =fourbar($H$20,$G$21,$G$22,1,1,C25) -> 3.73553221 | E25: =D25/D_R -> 214.0302299 | F25: =(B25-$B$25)/$J$4 -> 0 | G25: =EXP(F25) -> 1 | H25: =1+(E25-$D$5)/$J$5 -> 0.9991267642 | I25: =G25-H25 -> 0.0008732358498 | K25: =fourbar($G$20,$G$21,$G$22,1,-1,C25)/D_R -> 98.17827313 | L25: =1+(K25-$D$5)/$J$5 -> -0.9915363564 | M25: =G25-L25 -> 1.991536356
B26: =B25+1 -> 61 | C26: 4.206243497 | D26: =fourbar($H$20,$G$21,$G$22,1,1,C26) -> 3.745997483 | E26: 214.6298458 | F26: =(B26-$B$25)/$J$4 -> 0.01 | G26: =EXP(F26) -> 1.010050167 | H26: =1+(E26-$D$5)/$J$5 -> 1.009429856 | I26: =G26-H26 -> 0.0006203107615 | K26: =fourbar($G$20,$G$21,$G$22,1,-1,C26)/D_R -> 99.23995825 | L26: =1+(K26-$D$5)/$J$5 -> -0.973293614 | M26: =G26-L26 -> 1.983343781
B27: =B26+1 -> 62 | C27: 4.22369679 | D27: 3.756548462 | E27: 215.2343724 | F27: 0.02 | G27: 1.02020134 | H27: 1.019817327 | I27: 0.0003840131785 | K27: =fourbar($G$20,$G$21,$G$22,1,-1,C27)/D_R -> 100.2901302 | L27: =1+(K27-$D$5)/$J$5 -> -0.9552487001 | M27: 1.97545004
B28: 63 | C28: 4.241150082 | D28: 3.767185971 | E28: 215.8438568 | F28: 0.03 | G28: 1.030454534 | H28: 1.030289985 | I28: 0.0001645486821 | K28: =fourbar($G$20,$G$21,$G$22,1,-1,C28)/D_R -> 101.3289029 | L28: -0.9373996581 | M28: 1.967854192
B29: 64 | C29: 4.258603375 | D29: 3.777910914 | E29: 216.4583507 | F29: 0.04 | G29: 1.040810774 | H29: 1.040848724 | I29: -3.794958312e-05 | K29: =fourbar($G$20,$G$21,$G$22,1,-1,C29)/D_R -> 102.3563945 | L29: -0.9197444557 | M29: 1.96055523
B30: 65 | C30: 4.276056667 | D30: 3.788724277 | E30: 217.0779108 | F30: 0.05 | G30: 1.051271096 | H30: 1.051494512 | I30: -0.0002234154767 | K30: =fourbar($G$20,$G$21,$G$22,1,-1,C30)/D_R -> 103.3727274 | L30: -0.9022809928 | M30: 1.953552089
B31: 66 | C31: 4.29350996 | D31: 3.799627118 | E31: 217.7025976 | F31: 0.06 | G31: 1.061836547 | H31: 1.062228392 | I31: -0.0003918450785 | K31: =fourbar($G$20,$G$21,$G$22,1,-1,C31)/D_R -> 104.3780272 | L31: -0.885007109 | M31: 1.946843656
B32: 67 | C32: 4.310963252 | D32: 3.810620566 | E32: 218.3324758 | F32: 0.07 | G32: 1.072508181 | H32: 1.073051474 | I32: -0.0005432924632 | K32: =fourbar($G$20,$G$21,$G$22,1,-1,C32)/D_R -> 105.3724228 | L32: -0.8679205906 | M32: 1.940428772
B33: 68 | C33: 4.328416545 | D33: 3.821705815 | E33: 218.9676137 | F33: 0.08 | G33: 1.083287068 | H33: 1.083964934 | I33: -0.0006778659561 | K33: =fourbar($G$20,$G$21,$G$22,1,-1,C33)/D_R -> 106.3560456 | L33: -0.8510191776 | M33: 1.934306245
B34: 69 | C34: 4.345869837 | D34: 3.83288412 | E34: 219.6080834 | F34: 0.09 | G34: 1.094174284 | H34: 1.094970009 | I34: -0.0007957248066 | K34: =fourbar($G$20,$G$21,$G$22,1,-1,C34)/D_R -> 107.3290297 | L34: -0.8343005693 | M34: 1.928474853
B35: 70 | C35: 4.36332313 | D35: 3.844156799 | E35: 220.2539604 | F35: 0.1 | G35: 1.105170918 | H35: 1.106067994 | I35: -0.0008970762208 | K35: =fourbar($G$20,$G$21,$G$22,1,-1,C35)/D_R -> 108.2915108 | L35: -0.8177624306 | M35: 1.922933349
B36: 71 | C36: 4.380776423 | D36: 3.855525225 | E36: 220.9053232 | F36: 0.11 | G36: 1.11627807 | H36: 1.117260243 | I36: -0.0009821727084 | K36: =fourbar($G$20,$G$21,$G$22,1,-1,C36)/D_R -> 109.2436266 | L36: -0.8014023978 | M36: 1.917680468
B37: 72 | C37: 4.398229715 | D37: 3.866990826 | E37: 221.5622537 | F37: 0.12 | G37: 1.127496852 | H37: 1.128548161 | I37: -0.001051309699 | K37: =fourbar($G$20,$G$21,$G$22,1,-1,C37)/D_R -> 110.1855161 | L37: -0.7852180829 | M37: 1.912714934
B38: 73 | C38: 4.415683008 | D38: 3.878555083 | E38: 222.2248368 | F38: 0.13 | G38: 1.138828383 | H38: 1.139933207 | I38: -0.001104823391 | K38: =fourbar($G$20,$G$21,$G$22,1,-1,C38)/D_R -> 111.1173192 | L38: -0.7692070793 | M38: 1.908035463
B39: 74 | C39: 4.4331363 | D39: 3.890219528 | E39: 222.8931603 | F39: 0.14 | G39: 1.150273799 | H39: 1.151416888 | I39: -0.001143088809 | K39: =fourbar($G$20,$G$21,$G$22,1,-1,C39)/D_R -> 112.0391769 | L39: -0.753366966 | M39: 1.903640765
B40: 75 | C40: 4.450589593 | D40: 3.901985742 | E40: 223.5673148 | F40: 0.15 | G40: 1.161834243 | H40: 1.163000761 | I40: -0.001166518027 | K40: =fourbar($G$20,$G$21,$G$22,1,-1,C40)/D_R -> 112.9512307 | L40: -0.7376953117 | M40: 1.899529554
B41: 76 | C41: 4.468042885 | D41: 3.913855355 | E41: 224.2473935 | F41: 0.16 | G41: 1.173510871 | H41: 1.17468643 | I41: -0.001175558546 | K41: =fourbar($G$20,$G$21,$G$22,1,-1,C41)/D_R -> 113.8536224 | L41: -0.7221896791 | M41: 1.89570055
B42: 77 | C42: 4.485496178 | D42: 3.925830041 | E42: 224.9334924 | F42: 0.17 | G42: 1.185304851 | H42: 1.186475543 | I42: -0.001170691801 | K42: =fourbar($G$20,$G$21,$G$22,1,-1,C42)/D_R -> 114.746494 | L42: -0.7068476281 | M42: 1.892152479
B43: 78 | C43: 4.50294947 | D43: 3.937911519 | E43: 225.6257102 | F43: 0.18 | G43: 1.197217363 | H43: 1.198369795 | I43: -0.001152431766 | K43: =fourbar($G$20,$G$21,$G$22,1,-1,C43)/D_R -> 115.6299875 | L43: -0.6916667197 | M43: 1.888884083
B44: 79 | C44: 4.520402763 | D44: 3.950101555 | E44: 226.3241478 | F44: 0.19 | G44: 1.209249598 | H44: 1.210370921 | I44: -0.001121323663 | K44: =fourbar($G$20,$G$21,$G$22,1,-1,C44)/D_R -> 116.5042446 | L44: -0.6766445189 | M44: 1.885894117
B45: 80 | C45: 4.537856055 | D45: 3.962401955 | E45: 227.0289087 | F45: 0.2 | G45: 1.221402758 | H45: 1.222480701 | I45: -0.001077942726 | K45: =fourbar($G$20,$G$21,$G$22,1,-1,C45)/D_R -> 117.3694066 | L45: -0.661778598 | M45: 1.883181356
B46: 81 | C46: 4.555309348 | D46: 3.974814565 | E46: 227.7400989 | F46: 0.21 | G46: 1.23367806 | H46: 1.234700953 | I46: -0.001022893042 | K46: =fourbar($G$20,$G$21,$G$22,1,-1,C46)/D_R -> 118.2256141 | L46: -0.6470665388 | M46: 1.880744599
B47: 82 | C47: 4.57276264 | D47: 3.987341276 | E47: 228.4578266 | F47: 0.22 | G47: 1.246076731 | H47: 1.247033537 | I47: -0.0009568064204 | K47: =fourbar($G$20,$G$21,$G$22,1,-1,C47)/D_R -> 119.0730073 | L47: -0.6325059358 | M47: 1.878582666
B48: 83 | C48: 4.590215933 | D48: 3.999984015 | E48: 229.1822022 | F48: 0.23 | G48: 1.25860001 | H48: 1.259480351 | I48: -0.000880341302 | K48: =fourbar($G$20,$G$21,$G$22,1,-1,C48)/D_R -> 119.9117252 | L48: -0.6180943981 | M48: 1.876694408
B49: 84 | C49: 4.607669225 | D49: 4.01274475 | E49: 229.9133384 | F49: 0.24 | G49: 1.27124915 | H49: 1.272043332 | I49: -0.0007941816857 | K49: =fourbar($G$20,$G$21,$G$22,1,-1,C49)/D_R -> 120.7419061 | L49: -0.6038295518 | M49: 1.875078702
B50: 85 | C50: 4.625122518 | D50: 4.025625483 | E50: 230.6513501 | F50: 0.25 | G50: 1.284025417 | H50: 1.284724453 | I50: -0.0006990360615 | K50: =fourbar($G$20,$G$21,$G$22,1,-1,C50)/D_R -> 121.5636868 | L50: -0.5897090421 | M50: 1.873734459
B51: 86 | C51: 4.64257581 | D51: 4.038628258 | E51: 231.3963542 | F51: 0.26 | G51: 1.296930087 | H51: 1.297525723 | I51: -0.000595636341 | K51: =fourbar($G$20,$G$21,$G$22,1,-1,C51)/D_R -> 122.3772034 | L51: -0.5757305352 | M51: 1.872660622
B52: 87 | C52: 4.660029103 | D52: 4.05175515 | E52: 232.1484697 | F52: 0.27 | G52: 1.309964451 | H52: 1.310449188 | I52: -0.0004847367735 | K52: =fourbar($G$20,$G$21,$G$22,1,-1,C52)/D_R -> 123.1825902 | L52: -0.5618917197 | M52: 1.87185617
B53: 88 | C53: 4.677482395 | D53: 4.065008272 | E53: 232.9078177 | F53: 0.28 | G53: 1.323129812 | H53: 1.323496925 | I53: -0.000367112838 | K53: =fourbar($G$20,$G$21,$G$22,1,-1,C53)/D_R -> 123.9799804 | L53: -0.5481903089 | M53: 1.871320121
B54: 89 | C54: 4.694935688 | D54: 4.078389769 | E54: 233.674521 | F54: 0.29 | G54: 1.336427488 | H54: 1.336671048 | I54: -0.0002435601002 | K54: =fourbar($G$20,$G$21,$G$22,1,-1,C54)/D_R -> 124.7695056 | L54: -0.5346240417 | M54: 1.87105153
B55: 90 | C55: 4.71238898 | D55: 4.091901818 | E55: 234.4487043 | F55: 0.3 | G55: 1.349858808 | H55: 1.349973701 | I55: -0.0001148930261 | K55: =fourbar($G$20,$G$21,$G$22,1,-1,C55)/D_R -> 125.5512957 | L55: -0.5211906844 | M55: 1.871049492
B56: 91 | C56: 4.729842273 | D56: 4.105546629 | E56: 235.2304944 | F56: 0.31 | G56: 1.363425114 | H56: 1.363407058 | I56: 1.805626031e-05 | K56: =fourbar($G$20,$G$21,$G$22,1,-1,C56)/D_R -> 126.325479 | L56: -0.507888032 | M56: 1.871313146
B57: 92 | C57: =B57*D_R+PI() -> 4.747295565 | D57: 4.119326443 | E57: =D57/D_R -> 236.0200196 | F57: 0.32 | G57: 1.377127764 | H57: 1.376973325 | I57: 0.0001544392822 | K57: =fourbar($G$20,$G$21,$G$22,1,-1,C57)/D_R -> 127.0921823 | L57: -0.494713909 | M57: 1.871841673
B58: 93 | C58: 4.764748858 | D58: 4.133243527 | E58: 236.8174098 | F58: 0.33 | G58: 1.390968128 | H58: 1.390674736 | I58: 0.0002933925901 | K58: =fourbar($G$20,$G$21,$G$22,1,-1,C58)/D_R -> 127.8515303 | L58: -0.4816661713 | M58: 1.8726343
B59: 94 | C59: 4.78220215 | D59: 4.147300179 | E59: 237.6227966 | F59: 0.34 | G59: 1.404947591 | H59: 1.404513551 | I59: 0.0004340392265 | K59: =fourbar($G$20,$G$21,$G$22,1,-1,C59)/D_R -> 128.6036458 | L59: -0.4687427068 | M59: 1.873690297
B60: 95 | C60: 4.799655443 | D60: 4.161498721 | E60: 238.4363132 | F60: 0.35 | G60: 1.419067549 | H60: 1.418492058 | I60: 0.0005754902845 | K60: =fourbar($G$20,$G$21,$G$22,1,-1,C60)/D_R -> 129.3486499 | L60: -0.4559414366 | M60: 1.875008985
B61: 96 | C61: 4.817108736 | D61: 4.175841501 | E61: 239.2580939 | F61: 0.36 | G61: 1.433329415 | H61: 1.432612568 | I61: 0.000716846572 | K61: =fourbar($G$20,$G$21,$G$22,1,-1,C61)/D_R -> 130.0866616 | L61: -0.4432603158 | M61: 1.87658973
B62: 97 | C62: 4.834562028 | D62: 4.19033089 | E62: 240.0882748 | F62: 0.37 | G62: 1.447734615 | H62: 1.446877414 | I62: 0.0008572003911 | K62: =fourbar($G$20,$G$21,$G$22,1,-1,C62)/D_R -> 130.8177978 | L62: -0.4306973351 | M62: 1.87843195
B63: 98 | C63: 4.852015321 | D63: 4.204969279 | E63: 240.9269927 | F63: 0.38 | G63: 1.462284589 | H63: 1.461288952 | I63: 0.0009956374442 | K63: =fourbar($G$20,$G$21,$G$22,1,-1,C63)/D_R -> 131.5421734 | L63: -0.4182505208 | M63: 1.88053511
B64: 99 | C64: 4.869468613 | D64: 4.21975908 | E64: 241.7743859 | F64: 0.39 | G64: 1.476980794 | H64: 1.475849555 | I64: 0.001131238878 | K64: =fourbar($G$20,$G$21,$G$22,1,-1,C64)/D_R -> 132.2599011 | L64: -0.4059179368 | M64: 1.882898731
B65: 100 | C65: 4.886921906 | D65: 4.234702722 | E65: 242.6305934 | F65: 0.4 | G65: 1.491824698 | H65: 1.490561614 | I65: 0.001263083476 | K65: =fourbar($G$20,$G$21,$G$22,1,-1,C65)/D_R -> 132.9710913 | L65: -0.3936976847 | M65: 1.885522382
B66: 101 | C66: 4.904375198 | D66: 4.249802646 | E66: 243.4957554 | F66: 0.41 | G66: 1.506817785 | H66: 1.505427535 | I66: 0.001390250014 | K66: =fourbar($G$20,$G$21,$G$22,1,-1,C66)/D_R -> 133.6758522 | L66: -0.3815879051 | M66: 1.88840569
B67: 102 | C67: 4.921828491 | D67: 4.265061311 | E67: 244.3700125 | F67: 0.42 | G67: 1.521961556 | H67: 1.520449736 | I67: 0.001511819785 | K67: =fourbar($G$20,$G$21,$G$22,1,-1,C67)/D_R -> 134.3742898 | L67: -0.3695867787 | M67: 1.891548334
B68: 103 | C68: 4.939281783 | D68: 4.280481182 | E68: 245.253506 | F68: 0.43 | G68: 1.537257524 | H68: 1.535630644 | I68: 0.001626879314 | K68: =fourbar($G$20,$G$21,$G$22,1,-1,C68)/D_R -> 135.0665076 | L68: -0.3576925269 | M68: 1.89495005
B69: 104 | C69: 4.956735076 | D69: 4.296064732 | E69: 246.1463776 | F69: 0.44 | G69: 1.552707219 | H69: 1.550972695 | I69: 0.001734523272 | K69: =fourbar($G$20,$G$21,$G$22,1,-1,C69)/D_R -> 135.7526065 | L69: -0.3459034134 | M69: 1.898610632
B70: 105 | C70: 4.974188368 | D70: 4.311814438 | E70: 247.0487693 | F70: 0.45 | G70: 1.568312185 | H70: 1.566478328 | I70: 0.001833857595 | K70: =fourbar($G$20,$G$21,$G$22,1,-1,C70)/D_R -> 136.4326852 | L70: -0.3342177446 | M70: 1.90252993
B71: 106 | C71: 4.991641661 | D71: 4.327732779 | E71: 247.9608231 | F71: 0.46 | G71: 1.584073985 | H71: 1.582149982 | I71: 0.001924002836 | K71: =fourbar($G$20,$G$21,$G$22,1,-1,C71)/D_R -> 137.1068397 | L71: -0.3226338715 | M71: 1.906707856
B72: 107 | C72: 5.009094953 | D72: 4.343822231 | E72: 248.8826808 | F72: 0.47 | G72: 1.599994193 | H72: 1.597990095 | I72: 0.002004097756 | K72: =fourbar($G$20,$G$21,$G$22,1,-1,C72)/D_R -> 137.7751632 | L72: -0.3111501905 | M72: 1.911144384
B73: 108 | C73: 5.026548246 | D73: 4.360085264 | E73: 249.8144839 | F73: 0.48 | G73: 1.616074402 | H73: 1.614001099 | I73: 0.002073303164 | K73: =fourbar($G$20,$G$21,$G$22,1,-1,C73)/D_R -> 138.4377463 | L73: -0.2997651451 | M73: 1.915839547
B74: 109 | C74: 5.044001538 | D74: 4.376524335 | E74: 250.7563734 | F74: 0.49 | G74: 1.63231622 | H74: 1.630185414 | I74: 0.00213080603 | K74: =fourbar($G$20,$G$21,$G$22,1,-1,C74)/D_R -> 139.0946768 | L74: -0.288477227 | M74: 1.920793447
B75: 110 | C75: 5.061454831 | D75: 4.393141891 | E75: 251.7084892 | F75: 0.5 | G75: 1.648721271 | H75: 1.646545447 | I75: 0.002175823882 | K75: =fourbar($G$20,$G$21,$G$22,1,-1,C75)/D_R -> 139.7460396 | L75: -0.2772849781 | M75: 1.926006249
B76: 111 | C76: 5.078908123 | D76: 4.409940356 | E76: 252.6709703 | F76: 0.51 | G76: 1.665291195 | H76: 1.663083585 | I76: 0.0022076095 | K76: =fourbar($G$20,$G$21,$G$22,1,-1,C76)/D_R -> 140.3919166 | L76: -0.2661869923 | M76: 1.931478187
B77: 112 | C77: 5.096361416 | D77: 4.426922132 | E77: 253.6439544 | F77: 0.52 | G77: 1.68202765 | H77: 1.679802194 | I77: 0.002225455925 | K77: =fourbar($G$20,$G$21,$G$22,1,-1,C77)/D_R -> 141.0323863 | L77: -0.2551819175 | M77: 1.937209567
B78: 113 | C78: 5.113814708 | D78: 4.444089589 | E78: 254.6275772 | F78: 0.53 | G78: 1.698932309 | H78: 1.696703607 | I78: 0.002228701798 | K78: =fourbar($G$20,$G$21,$G$22,1,-1,C78)/D_R -> 141.6675242 | L78: -0.2442684575 | M78: 1.943200766
B79: 114 | C79: 5.131268001 | D79: 4.461445066 | E79: 255.6219728 | F79: 0.54 | G79: 1.716006862 | H79: 1.713790125 | I79: 0.002216737043 | K79: =fourbar($G$20,$G$21,$G$22,1,-1,C79)/D_R -> 142.2974024 | L79: -0.2334453755 | M79: 1.949452238
B80: 115 | C80: 5.148721293 | D80: 4.478990857 | E80: 256.6272726 | F80: 0.55 | G80: 1.733253018 | H80: 1.731064009 | I80: 0.002189008918 | K80: =fourbar($G$20,$G$21,$G$22,1,-1,C80)/D_R -> 142.9220892 | L80: -0.2227114957 | M80: 1.955964514
B81: 116 | C81: 5.166174586 | D81: 4.496729212 | E81: 257.6436055 | F81: 0.56 | G81: 1.7506725 | H81: 1.748527472 | I81: 0.002145028435 | K81: =fourbar($G$20,$G$21,$G$22,1,-1,C81)/D_R -> 143.5416493 | L81: -0.2120657076 | M81: 1.962738208
B82: 117 | C82: 5.183627878 | D82: 4.514662325 | E82: 258.6710971 | F82: 0.57 | G82: 1.768267051 | H82: 1.766182674 | I82: 0.002084377177 | K82: =fourbar($G$20,$G$21,$G$22,1,-1,C82)/D_R -> 144.1561432 | L82: -0.2015069691 | M82: 1.969774021
B83: 118 | C83: 5.201081171 | D83: 4.532792328 | E83: 259.7098698 | F83: 0.58 | G83: 1.786038431 | H83: 1.784031716 | I83: 0.002006714517 | K83: =fourbar($G$20,$G$21,$G$22,1,-1,C83)/D_R -> 144.7656276 | L83: -0.1910343107 | M83: 1.977072741
B84: 119 | C84: 5.218534463 | D84: 4.551121286 | E84: 260.7600417 | F84: 0.59 | G84: 1.803988415 | H84: 1.80207663 | I84: 0.001911785271 | K84: =fourbar($G$20,$G$21,$G$22,1,-1,C84)/D_R -> 145.3701542 | L84: -0.1806468402 | M84: 1.984635256
B85: 120 | C85: 5.235987756 | D85: 4.569651187 | E85: 261.8217269 | F85: 0.6 | G85: 1.8221188 | H85: 1.820319373 | I85: 0.001799427769 | K85: =fourbar($G$20,$G$21,$G$22,1,-1,C85)/D_R -> 145.9697701 | L85: -0.170343748 | M85: 1.992462548
B86: 121 | C86: 5.253441049 | D86: 4.588383933 | E86: 262.8950341 | F86: 0.61 | G86: 1.840431399 | H86: 1.838761816 | I86: 0.001669582394 | K86: =fourbar($G$20,$G$21,$G$22,1,-1,C86)/D_R -> 146.5645174 | L86: -0.1601243133 | M86: 2.000555712
B87: 122 | C87: 5.270894341 | D87: 4.607321331 | E87: 263.9800671 | F87: 0.62 | G87: 1.858928042 | H87: 1.857405741 | I87: 0.001522300561 | K87: =fourbar($G$20,$G$21,$G$22,1,-1,C87)/D_R -> 147.1544324 | L87: -0.1499879111 | M87: 2.008915953
B88: =B87+1 -> 123 | C88: 5.288347634 | D88: 4.626465086 | E88: 265.0769235 | F88: 0.63 | G88: 1.877610579 | H88: 1.876252825 | I88: 0.001357754188 | K88: =fourbar($G$20,$G$21,$G$22,1,-1,C88)/D_R -> 147.7395455 | L88: -0.1399340198 | M88: 2.017544599
B89: 124 | C89: =B89*D_R+PI() -> 5.305800926 | D89: 4.645816789 | E89: =D89/D_R -> 266.1856944 | F89: 0.64 | G89: 1.896480879 | H89: 1.895304634 | I89: 0.001176245628 | K89: =fourbar($G$20,$G$21,$G$22,1,-1,C89)/D_R -> 148.3198804 | L89: -0.129962231 | M89: 2.02644311
B90: 125 | C90: 5.323254219 | D90: =fourbar($H$20,$G$21,$G$22,1,1,C90) -> 4.665377905 | E90: 267.3064638 | F90: =(B90-$B$25)/$J$4 -> 0.65 | G90: =EXP(F90) -> 1.915540829 | H90: =1+(E90-$D$5)/$J$5 -> 1.914562611 | I90: =G90-H90 -> 0.0009782181036 | K90: =fourbar($G$20,$G$21,$G$22,1,-1,C90)/D_R -> 148.8954537 | L90: =1+(K90-$D$5)/$J$5 -> -0.1200722596 | M90: =G90-L90 -> 2.035613089
B91: =B90+1 -> 126 | C91: 5.340707511 | D91: 4.685149768 | E91: 268.4393081 | F91: 0.66 | G91: 1.934792334 | H91: 1.934028068 | I91: 0.0007642666206 | K91: =fourbar($G$20,$G$21,$G$22,1,-1,C91)/D_R -> 149.466274 | L91: -0.1102639566 | M91: 2.045056291
B92: 127 | C92: 5.358160804 | D92: 4.70513356 | E92: 269.5842951 | F92: 0.67 | G92: 1.954237321 | H92: 1.953702171 | I92: 0.0005351493844 | K92: =fourbar($G$20,$G$21,$G$22,1,-1,C92)/D_R -> 150.0323414 | L92: -0.1005373232 | M92: 2.054774644
B93: 128 | C93: 5.375614096 | D93: 4.725330311 | E93: 270.7414837 | F93: 0.68 | G93: 1.973877732 | H93: 1.973585933 | I93: 0.0002917997038 | K93: =fourbar($G$20,$G$21,$G$22,1,-1,C93)/D_R -> 150.5936461 | L93: -0.09089252771 | M93: 2.06477026
B94: 129 | C94: 5.393067389 | D94: 4.745740877 | E94: 271.9109229 | F94: 0.69 | G94: 1.993715533 | H94: 1.993680195 | I94: 3.533838547e-05 | K94: =fourbar($G$20,$G$21,$G$22,1,-1,C94)/D_R -> 151.1501673 | L94: -0.08132992517 | M94: 2.075045458
B95: 130 | C95: 5.410520681 | D95: 4.76636593 | E95: 273.0926514 | F95: 0.7 | G95: 2.013752707 | H95: 2.013985621 | I95: -0.0002329133926 | K95: =fourbar($G$20,$G$21,$G$22,1,-1,C95)/D_R -> 151.7018721 | L95: -0.07185008078 | M95: 2.085602788
B96: 131 | C96: 5.427973974 | D96: 4.787205947 | E96: 274.2866964 | F96: =(B96-$B$25)/$J$4 -> 0.71 | G96: 2.033991259 | H96: 2.034502679 | I96: -0.0005114207413 | K96: =fourbar($G$20,$G$21,$G$22,1,-1,C96)/D_R -> 152.2487139 | L96: -0.06245379731 | M96: 2.096445056
B97: 132 | C97: 5.445427266 | D97: 4.808261193 | E97: 275.4930732 | F97: 0.72 | G97: 2.054433211 | H97: 2.055231632 | I97: -0.000798421272 | K97: =fourbar($G$20,$G$21,$G$22,1,-1,C97)/D_R -> 152.7906302 | L97: -0.05314214807 | M97: 2.107575359
B98: 133 | C98: 5.462880559 | D98: 4.82953171 | E98: 276.711784 | F98: 0.73 | G98: 2.075080608 | H98: 2.076172519 | I98: -0.001091910883 | K98: =fourbar($G$20,$G$21,$G$22,1,-1,C98)/D_R -> 153.3275405 | L98: -0.04391651631 | M98: 2.118997124
B99: 134 | C99: 5.480333851 | D99: 4.851017298 | E99: 277.9428175 | F99: 0.74 | G99: 2.095935514 | H99: 2.097325144 | I99: -0.001389629155 | K99: =fourbar($G$20,$G$21,$G$22,1,-1,C99)/D_R -> 153.8593435 | L99: -0.03477864281 | M99: 2.130714157
B100: 135 | C100: 5.497787144 | D100: 4.872717504 | E100: 279.1861477 | F100: 0.75 | G100: 2.117000017 | H100: 2.118689061 | I100: -0.001689044387 | K100: =fourbar($G$20,$G$21,$G$22,1,-1,C100)/D_R -> 154.3859136 | L100: -0.02573068379 | M100: 2.1427307
B101: 136 | C101: 5.515240436 | D101: 4.894631605 | E101: 280.4417333 | F101: 0.76 | G101: 2.13827622 | H101: 2.140263559 | I101: -0.001987338322 | K101: =fourbar($G$20,$G$21,$G$22,1,-1,C101)/D_R -> 154.9070971 | L101: -0.01677528182 | M101: 2.155051502
B102: 137 | C102: 5.532693729 | D102: 4.916758594 | E102: 281.7095163 | F102: 0.77 | G102: 2.159766254 | H102: 2.162047644 | I102: -0.002281390621 | K102: =fourbar($G$20,$G$21,$G$22,1,-1,C102)/D_R -> 155.4227069 | L102: -0.007915653584 | M102: 2.167681907
B103: 138 | C103: 5.550147021 | D103: 4.939097159 | E103: 282.9894218 | F103: 0.78 | G103: 2.181472265 | H103: 2.184040029 | I103: -0.002567763143 | K103: =fourbar($G$20,$G$21,$G$22,1,-1,C103)/D_R -> 155.9325158 | L103: 0.0008443007074 | M103: 2.180627965
B104: 139 | C104: 5.567600314 | D104: 4.961645676 | E104: 284.2813567 | F104: 0.79 | G104: 2.203396426 | H104: 2.20623911 | I104: -0.002842684106 | K104: =fourbar($G$20,$G$21,$G$22,1,-1,C104)/D_R -> 156.4362492 | L104: 0.009499859165 | M104: 2.193896567
B105: 140 | C105: 5.585053606 | D105: 4.984402185 | E105: 285.5852086 | F105: 0.8 | G105: 2.225540928 | H105: 2.228642961 | I105: -0.00310203222 | K105: =fourbar($G$20,$G$21,$G$22,1,-1,C105)/D_R -> 156.933574 | L105: 0.018045302 | M105: 2.207495626
B106: 141 | C106: 5.602506899 | D106: 5.007364377 | E106: 286.9008453 | F106: 0.81 | G106: 2.247907987 | H106: 2.251249308 | I106: -0.003341320889 | K106: =fourbar($G$20,$G$21,$G$22,1,-1,C106)/D_R -> 157.4240862 | L106: 0.02647368361 | M106: 2.221434303
B107: 142 | C107: 5.619960191 | D107: 5.030529582 | E107: 288.2281138 | F107: 0.82 | G107: 2.270499838 | H107: 2.27405552 | I107: -0.003555682594 | K107: =fourbar($G$20,$G$21,$G$22,1,-1,C107)/D_R -> 157.9072927 | L107: 0.03477653353 | M107: 2.235723304
B108: 143 | C108: 5.637413484 | D108: 5.053894746 | E108: 289.5668391 | F108: 0.83 | G108: 2.29331874 | H108: 2.297058594 | I108: -0.003739853581 | K108: =fourbar($G$20,$G$21,$G$22,1,-1,C108)/D_R -> 158.3825887 | L108: 0.04294345744 | M108: 2.250375283
B109: 144 | C109: 5.654866776 | D109: 5.077456424 | E109: 290.9168238 | F109: 0.84 | G109: 2.316366977 | H109: 2.320255136 | I109: -0.003888159002 | K109: =fourbar($G$20,$G$21,$G$22,1,-1,C109)/D_R -> 158.8492256 | L109: 0.05096159469 | M109: 2.265405382
B110: 145 | C110: 5.672320069 | D110: 5.101210761 | E110: 292.277847 | F110: 0.85 | G110: 2.339646852 | H110: 2.343641351 | I110: -0.003994498657 | K110: =fourbar($G$20,$G$21,$G$22,1,-1,C110)/D_R -> 159.3062676 | L110: 0.05881486457 | M110: 2.280831987
B111: 146 | C111: 5.689773362 | D111: 5.125153479 | E111: 293.6496637 | F111: 0.86 | G111: 2.363160694 | H111: 2.367213027 | I111: -0.004052333529 | K111: =fourbar($G$20,$G$21,$G$22,1,-1,C111)/D_R -> 159.7525289 | L111: 0.06648289228 | M111: 2.296677801
B112: 147 | C112: 5.707226654 | D112: 5.149279866 | E112: 295.0320038 | F112: 0.87 | G112: 2.386910854 | H112: 2.390965527 | I112: -0.004054673277 | K112: =fourbar($G$20,$G$21,$G$22,1,-1,C112)/D_R -> 160.1864822 | L112: 0.07393943265 | M112: 2.312971421
B113: 148 | C113: 5.724679947 | D113: 5.173584764 | E113: 296.4245719 | F113: 0.88 | G113: 2.410899706 | H113: 2.414893771 | I113: -0.003994064929 | K113: =fourbar($G$20,$G$21,$G$22,1,-1,C113)/D_R -> 160.6061189 | L113: 0.08114997358 | M113: 2.329749733
B114: 149 | C114: 5.742133239 | D114: 5.19806256 | E114: 297.8270463 | F114: 0.89 | G114: 2.435129651 | H114: 2.438992234 | I114: -0.003862582974 | K114: =fourbar($G$20,$G$21,$G$22,1,-1,C114)/D_R -> 161.0087281 | L114: 0.08806793336 | M114: 2.347061718
B115: 150 | C115: 5.759586532 | D115: 5.222707176 | E115: 299.2390788 | F115: 0.9 | G115: 2.459603111 | H115: 2.463254932 | I115: -0.003651821111 | K115: =fourbar($G$20,$G$21,$G$22,1,-1,C115)/D_R -> 161.390526 | L115: 0.09462829828 | M115: 2.364974813
B116: 151 | C116: 5.777039824 | D116: 5.247512066 | E116: 300.6602943 | F116: 0.91 | G116: 2.484322533 | H116: 2.487675419 | I116: -0.003352885917 | K116: =fourbar($G$20,$G$21,$G$22,1,-1,C116)/D_R -> 161.7459936 | L116: 0.1007362338 | M116: 2.3835863
B117: 152 | C117: 5.794493117 | D117: 5.272470206 | E117: 302.0902904 | F117: 0.92 | G117: 2.50929039 | H117: 2.512246783 | I117: -0.002956392704 | K117: =fourbar($G$20,$G$21,$G$22,1,-1,C117)/D_R -> 162.0665789 | L117: 0.1062447917 | M117: 2.403045598
B118: 153 | C118: 5.811946409 | D118: 5.297574101 | E118: 303.5286376 | F118: 0.93 | G118: 2.534509178 | H118: 2.536961641 | I118: -0.002452463857 | K118: =fourbar($G$20,$G$21,$G$22,1,-1,C118)/D_R -> 162.3378197 | L118: 0.1109054742 | M118: 2.423603703
B119: 154 | C119: 5.829399702 | D119: 5.322815779 | E119: 304.9748792 | F119: 0.94 | G119: 2.559981418 | H119: 2.561812148 | I119: -0.001830729948 | K119: =fourbar($G$20,$G$21,$G$22,1,-1,C119)/D_R -> 162.5316343 | L119: 0.1142357551 | M119: 2.445745663
B120: 155 | C120: 5.846852994 | D120: 5.348186799 | E120: 306.4285316 | F120: 0.95 | G120: 2.585709659 | H120: 2.586789993 | I120: -0.001080333939 | K120: =fourbar($G$20,$G$21,$G$22,1,-1,C120)/D_R -> 162.5774061 | L120: 0.1150222423 | M120: 2.470687417
B121: 156 | C121: =B121*D_R+PI() -> 5.864306287 | D121: 5.37367826 | E121: =D121/D_R -> 307.8890848 | F121: 0.96 | G121: 2.611696473 | H121: 2.611886412 | I121: -0.0001899387795 | K121: =fourbar($G$20,$G$21,$G$22,1,-1,C121)/D_R -> 162.054491 | L121: 0.1060370885 | M121: 2.505659385
B122: 157 | C122: 5.881759579 | D122: 5.399280809 | E122: 309.3560028 | F122: 0.97 | G122: 2.637944459 | H122: 2.637092198 | I122: 0.0008522613132 | K122: =fourbar($G$20,$G$21,$G$22,1,-1,C122)/D_R -> 
B123: 158 | C123: 5.899212872 | D123: 5.424984661 | E123: 310.828725 | F123: 0.98 | G123: 2.664456242 | H123: 2.662397716 | I123: 0.002058525575 | K123: =fourbar($G$20,$G$21,$G$22,1,-1,C123)/D_R -> 
B124: 159 | C124: 5.916666164 | D124: 5.450779615 | E124: 312.306667 | F124: 0.99 | G124: 2.691234472 | H124: 2.687792925 | I124: 0.003441547166 | K124: =fourbar($G$20,$G$21,$G$22,1,-1,C124)/D_R -> 
B125: 160 | C125: 5.934119457 | D125: 5.476655082 | E125: 313.7892221 | F125: 1 | G125: 2.718281828 | H125: 2.713267399 | I125: 0.005014429146 | K125: =fourbar($G$20,$G$21,$G$22,1,-1,C125)/D_R -> 
